{"text_format":"1","workbook":"xlsx","n_sheets":4,"sheets":["Cuando puedo DONAR","Puntos Fijos de donación","Puntos Móviles Provinciales","Calendario"],"not_rendered":{"charts":0,"images":10,"macros":1,"external_links":1,"defined_names":5,"comments":0,"pivot_tables":0},"unopened":[],"bounds":{"document_bytes":16777216,"sheet_cells":100000,"rows_first":2000,"rows_last":500,"rows_between":2000,"halvings":0,"cell_chars":16384,"cell_head_chars":4096},"cells_cut":0,"cells_raw":0,"read":"whole","date_system":"1900"}

{"sheet":"Cuando puedo DONAR","index":0,"n_rows":301,"n_cols":53,"rows_kept":301,"cut":false,"hidden":false,"merged":[[2,2,2,15],[4,44,4,46],[2,30,2,32],[2,26,2,29],[2,16,2,25],[2,35,2,37],[4,52,6,55],[8,52,10,55],[12,52,21,55],[37,35,37,38],[34,1,34,17],[34,19,34,23],[36,1,36,17],[36,19,36,23],[36,25,36,27],[32,35,32,38],[35,35,35,38],[33,35,33,38],[32,1,32,17],[32,25,32,32],[32,19,32,23],[41,19,41,21],[42,19,42,21],[43,19,43,21],[44,19,44,21],[45,19,45,21],[46,19,46,21],[47,19,47,21],[48,19,48,21],[49,19,49,21],[50,19,50,21],[51,19,51,21],[52,19,52,21],[53,19,53,21],[54,19,54,21],[55,19,55,21],[56,19,56,21],[57,19,57,21],[58,19,58,21],[59,19,59,21],[60,19,60,21],[67,19,67,21],[68,19,68,21],[61,19,61,21],[62,19,62,21],[63,19,63,21],[64,19,64,21],[66,19,66,21]]}
[null,null,null,null,null,null,null,null,null,null,null,null,null,null,null,null,null,null,null,null,null,null,null,null,null,null,null,null,null,null,null,null,null,null,null,null,null,null,null,null,null,null,null,null,null,null,null,null,"AQUÍ","AÑOS"]
[null,null,null,null,null,null,null,null,null,null,null,null,null,null,null,null,null,null,null,null,null,null,null,null,null,null,null,null,null,null,null,null,null,null,null,null,null,null,{"$f":"SUM($AK$6:$AK$17,$AL$6:$AL$17)","v":0},null,null,null,null,null,null,null,null,null,1,2016]
[null,null,"CALENDARIO DE DONACIÓN ANUAL",null,null,null,null,null,null,null,null,null,null,null,null,null,"DONACIONES ACUMULADAS HASTA EL:",null,null,null,null,null,null,null,null,null,{"$f":"DATE(B5-AF7,12,31)","v":"2017-12-31"},null,null,null,"AQUÍ",null,null,null,null,{"$f":"IFERROR(AE3+AM3,AM3)","v":0},null,null,{"$f":"SUM($AK$6:$AK$17,$AL$6:$AL$17)","v":0},null,null,null,null,null,null,null,null,null,2,2017]
[null,null,null,null,null,null,null,null,null,null,null,null,null,null,null,null,null,null,null,null,null,null,null,null,null,null,null,null,null,null,null,null,null,null,null,null,null,null,null,null,null,null,null,null,null,null,null,null,3,2018]
[null,2017,1,2,3,4,5,6,7,8,9,10,11,12,13,14,15,16,17,18,19,20,21,22,23,24,25,26,27,28,29,30,31,null,null,"S","S","P","P","S/P","MESES","CONTAR \"S\"","12 MESES","FINAL MES","RESTO DÍAS",null,null,null,4,2019,null,null,"Trabajo realizado por:"]
[null,"ENERO",null,null,null,null,null,null,null,null,null,null,null,null,null,null,null,null,null,null,null,null,null,null,null,null,null,null,null,null,null,null,null,null,{"$f":"IF(AND(AJ6=\"\",AM6=\"\"),\"\",ROWS($AJ$1:AJ1))","v":""},{"$f":"IFERROR(DATE($B$5,ROWS($AJ$1:AJ1),INDEX($C$5:$AG$5,1,MATCH(\"S\",$C6:$AG6,0))),\"\")","v":""},{"$f":"COUNTIF($C6:$AG6,\"S\")","v":0},{"$f":"COUNTIF($C6:$AG6,\"P\")","v":0},{"$f":"IFERROR(DATE($B$5,ROWS($AJ$1:AJ1),INDEX($C$5:$AG$5,1,MATCH(\"P\",$C6:$AG6,1))),\"\")","v":""},{"$f":"IF(AND(AJ6=\"\",AM6=\"\"),\"\",IF(AND(AJ6<>\"\",AM6=\"\"),\"S\",IF(AND(AJ6=\"\",AM6<>\"\"),\"P\",IF(AJ6>AM6,\"S\",\"P\"))))","v":""},1,{"$f":"COUNTIF(C6:AG6,\"S\")","v":0},{"$f":"IF(AP6=0,\"\",IF(SUM(AP6:AP30)<=4,SUM($AP$6:AP6),\"\"))","v":""},{"$f":"IFERROR(EOMONTH(AJ6,0),\"\")","v":""},{"$f":"IF(SUM($AP$6:AP6)>=4,AR6-AJ6,0)","v":0},{"$f":"IF(COUNT($AS$6:AS6)>0,30-AS6,\"\")","v":30},null,null,5,2020]
[null,"FEBRERO",null,null,null,null,null,null,null,null,null,null,null,null,null,null,null,null,null,null,null,null,null,null,null,null,null,null,null,null,null,null,null,null,{"$f":"IF(AND(AJ7=\"\",AM7=\"\"),\"\",ROWS($AJ$1:AJ2))","v":""},{"$f":"IFERROR(DATE($B$5,ROWS($AJ$1:AJ2),INDEX($C$5:$AG$5,1,MATCH(\"S\",$C7:$AG7,0))),\"\")","v":""},{"$f":"COUNTIF($C7:$AG7,\"S\")","v":0},{"$f":"COUNTIF($C7:$AG7,\"P\")","v":0},{"$f":"IFERROR(DATE($B$5,ROWS($AJ$1:AJ2),INDEX($C$5:$AG$5,1,MATCH(\"P\",$C7:$AG7,1))),\"\")","v":""},"",2,{"$f":"COUNTIF(C7:AG7,\"S\")","v":0},{"$f":"IF(AP7=0,\"\",IF(SUM(AP7:AP31)<=4,SUM($AP$6:AP7),\"\"))","v":""},{"$f":"IFERROR(EOMONTH(AJ7,0),\"\")","v":""},{"$f":"IF(SUM($AP$6:AP7)>=4,AR7-AJ7,0)","v":0},{"$f":"IF(COUNT($AS$6:AS7)>0,30-AS7,\"\")","v":30},null,null,6,2021]
[null,"MARZO",null,null,null,null,null,null,null,null,null,null,null,null,null,null,null,null,null,null,null,null,null,null,null,null,null,null,null,null,null,null,null,null,{"$f":"IF(AND(AJ8=\"\",AM8=\"\"),\"\",ROWS($AJ$1:AJ3))","v":""},{"$f":"IFERROR(DATE($B$5,ROWS($AJ$1:AJ3),INDEX($C$5:$AG$5,1,MATCH(\"S\",$C8:$AG8,0))),\"\")","v":""},0,0,{"$f":"IFERROR(DATE($B$5,ROWS($AJ$1:AJ3),INDEX($C$5:$AG$5,1,MATCH(\"P\",$C8:$AG8,1))),\"\")","v":""},"",3,0,{"$f":"IF(AP8=0,\"\",IF(SUM(AP8:AP32)<=4,SUM($AP$6:AP8),\"\"))","v":""},{"$f":"IFERROR(EOMONTH(AJ8,0),\"\")","v":""},{"$f":"IF(SUM($AP$6:AP8)>=4,AR8-AJ8,0)","v":0},{"$f":"IF(COUNT($AS$6:AS8)>0,30-AS8,\"\")","v":30},null,null,7,2022]
[null,"ABRIL",null,null,null,null,null,null,null,null,null,null,null,null,null,null,null,null,null,null,null,null,null,null,null,null,null,null,null,null,null,null,null,null,{"$f":"IF(AND(AJ9=\"\",AM9=\"\"),\"\",ROWS($AJ$1:AJ4))","v":""},{"$f":"IFERROR(DATE($B$5,ROWS($AJ$1:AJ4),INDEX($C$5:$AG$5,1,MATCH(\"S\",$C9:$AG9,0))),\"\")","v":""},0,0,{"$f":"IFERROR(DATE($B$5,ROWS($AJ$1:AJ4),INDEX($C$5:$AG$5,1,MATCH(\"P\",$C9:$AG9,1))),\"\")","v":""},"",4,0,{"$f":"IF(AP9=0,\"\",IF(SUM(AP9:AP33)<=4,SUM($AP$6:AP9),\"\"))","v":""},"",{"$f":"IF(SUM($AP$6:AP9)>=4,AR9-AJ9,0)","v":0},{"$f":"IF(COUNT($AS$6:AS9)>0,30-AS9,\"\")","v":30},null,null,8,2023,null,null,"Germán Amorós"]
[null,"MAYO",null,null,null,null,null,null,null,null,null,null,null,null,null,null,null,null,null,null,null,null,null,null,null,null,null,null,null,null,null,null,null,null,{"$f":"IF(AND(AJ10=\"\",AM10=\"\"),\"\",ROWS($AJ$1:AJ5))","v":""},{"$f":"IFERROR(DATE($B$5,ROWS($AJ$1:AJ5),INDEX($C$5:$AG$5,1,MATCH(\"S\",$C10:$AG10,0))),\"\")","v":""},0,0,{"$f":"IFERROR(DATE($B$5,ROWS($AJ$1:AJ5),INDEX($C$5:$AG$5,1,MATCH(\"P\",$C10:$AG10,1))),\"\")","v":""},"",5,0,{"$f":"IF(AP10=0,\"\",IF(SUM(AP10:AP34)<=4,SUM($AP$6:AP10),\"\"))","v":""},"",{"$f":"IF(SUM($AP$6:AP10)>=4,AR10-AJ10,0)","v":0},{"$f":"IF(COUNT($AS$6:AS10)>0,30-AS10,\"\")","v":30},null,null,9,2024]
[null,"JUNIO",null,null,null,null,null,null,null,null,null,null,null,null,null,null,null,null,null,null,null,null,null,null,null,null,null,null,null,null,null,null,null,null,{"$f":"IF(AND(AJ11=\"\",AM11=\"\"),\"\",ROWS($AJ$1:AJ6))","v":""},{"$f":"IFERROR(DATE($B$5,ROWS($AJ$1:AJ6),INDEX($C$5:$AG$5,1,MATCH(\"S\",$C11:$AG11,0))),\"\")","v":""},0,0,{"$f":"IFERROR(DATE($B$5,ROWS($AJ$1:AJ6),INDEX($C$5:$AG$5,1,MATCH(\"P\",$C11:$AG11,1))),\"\")","v":""},"",6,0,{"$f":"IF(AP11=0,\"\",IF(SUM(AP11:AP35)<=4,SUM($AP$6:AP11),\"\"))","v":""},"",{"$f":"IF(SUM($AP$6:AP11)>=4,AR11-AJ11,0)","v":0},{"$f":"IF(COUNT($AS$6:AS11)>0,30-AS11,\"\")","v":30},null,null,10,2025]
[null,"JULIO",null,null,null,null,null,null,null,null,null,null,null,null,null,null,null,null,null,null,null,null,null,null,null,null,null,null,null,null,null,null,null,null,{"$f":"IF(AND(AJ12=\"\",AM12=\"\"),\"\",ROWS($AJ$1:AJ7))","v":""},{"$f":"IFERROR(DATE($B$5,ROWS($AJ$1:AJ7),INDEX($C$5:$AG$5,1,MATCH(\"S\",$C12:$AG12,0))),\"\")","v":""},0,0,{"$f":"IFERROR(DATE($B$5,ROWS($AJ$1:AJ7),INDEX($C$5:$AG$5,1,MATCH(\"P\",$C12:$AG12,1))),\"\")","v":""},"",7,0,{"$f":"IF(AP12=0,\"\",IF(SUM(AP12:AP36)<=4,SUM($AP$6:AP12),\"\"))","v":""},"",{"$f":"IF(SUM($AP$6:AP12)>=4,AR12-AJ12,0)","v":0},{"$f":"IF(COUNT($AS$6:AS12)>0,30-AS12,\"\")","v":30},null,null,11,2026]
[null,"AGOSTO",null,null,null,null,null,null,null,null,null,null,null,null,null,null,null,null,null,null,null,null,null,null,null,null,null,null,null,null,null,null,null,null,{"$f":"IF(AND(AJ13=\"\",AM13=\"\"),\"\",ROWS($AJ$1:AJ8))","v":""},{"$f":"IFERROR(DATE($B$5,ROWS($AJ$1:AJ8),INDEX($C$5:$AG$5,1,MATCH(\"S\",$C13:$AG13,0))),\"\")","v":""},0,0,{"$f":"IFERROR(DATE($B$5,ROWS($AJ$1:AJ8),INDEX($C$5:$AG$5,1,MATCH(\"P\",$C13:$AG13,1))),\"\")","v":""},{"$f":"IF(AND(AJ13=\"\",AM13=\"\"),\"\",IF(AND(AJ13<>\"\",AM13=\"\"),\"S\",IF(AND(AJ13=\"\",AM13<>\"\"),\"P\",IF(AJ13>AM13,\"S\",\"P\"))))","v":""},8,0,{"$f":"IF(AP13=0,\"\",IF(SUM(AP13:AP37)<=4,SUM($AP$6:AP13),\"\"))","v":""},"",{"$f":"IF(SUM($AP$6:AP13)>=4,AR13-AJ13,0)","v":0},{"$f":"IF(COUNT($AS$6:AS13)>0,30-AS13,\"\")","v":30},null,null,12,2027,null,null,"De la Asociación de Donantes de Sangre de Jerez de la Frontera"]
[null,"SEPTIEMBRE",null,null,null,null,null,null,null,null,null,null,null,null,null,null,null,null,null,null,null,null,null,null,null,null,null,null,null,null,null,null,null,null,{"$f":"IF(AND(AJ14=\"\",AM14=\"\"),\"\",ROWS($AJ$1:AJ9))","v":""},{"$f":"IFERROR(DATE($B$5,ROWS($AJ$1:AJ9),INDEX($C$5:$AG$5,1,MATCH(\"S\",$C14:$AG14,0))),\"\")","v":""},0,0,{"$f":"IFERROR(DATE($B$5,ROWS($AJ$1:AJ9),INDEX($C$5:$AG$5,1,MATCH(\"P\",$C14:$AG14,1))),\"\")","v":""},{"$f":"IF(AND(AJ14=\"\",AM14=\"\"),\"\",IF(AND(AJ14<>\"\",AM14=\"\"),\"S\",IF(AND(AJ14=\"\",AM14<>\"\"),\"P\",IF(AJ14>AM14,\"S\",\"P\"))))","v":""},9,0,{"$f":"IF(AP14=0,\"\",IF(SUM(AP14:AP38)<=4,SUM($AP$6:AP14),\"\"))","v":""},"",{"$f":"IF(SUM($AP$6:AP14)>=4,AR14-AJ14,0)","v":0},{"$f":"IF(COUNT($AS$6:AS14)>0,30-AS14,\"\")","v":30},null,null,13,2028]
[null,"OCTUBRE",null,null,null,null,null,null,null,null,null,null,null,null,null,null,null,null,null,null,null,null,null,null,null,null,null,null,null,null,null,null,null,null,{"$f":"IF(AND(AJ15=\"\",AM15=\"\"),\"\",ROWS($AJ$1:AJ10))","v":""},{"$f":"IFERROR(DATE($B$5,ROWS($AJ$1:AJ10),INDEX($C$5:$AG$5,1,MATCH(\"S\",$C15:$AG15,0))),\"\")","v":""},0,0,{"$f":"IFERROR(DATE($B$5,ROWS($AJ$1:AJ10),INDEX($C$5:$AG$5,1,MATCH(\"P\",$C15:$AG15,1))),\"\")","v":""},"",10,0,{"$f":"IF(AP15=0,\"\",IF(SUM(AP15:AP39)<=4,SUM($AP$6:AP15),\"\"))","v":""},"",{"$f":"IF(SUM($AP$6:AP15)>=4,AR15-AJ15,0)","v":0},{"$f":"IF(COUNT($AS$6:AS15)>0,30-AS15,\"\")","v":30},null,null,14,2029]
[null,"NOVIEMBRE",null,null,null,null,null,null,null,null,null,null,null,null,null,null,null,null,null,null,null,null,null,null,null,null,null,null,null,null,null,null,null,null,{"$f":"IF(AND(AJ16=\"\",AM16=\"\"),\"\",ROWS($AJ$1:AJ11))","v":""},{"$f":"IFERROR(DATE($B$5,ROWS($AJ$1:AJ11),INDEX($C$5:$AG$5,1,MATCH(\"S\",$C16:$AG16,0))),\"\")","v":""},0,0,{"$f":"IFERROR(DATE($B$5,ROWS($AJ$1:AJ11),INDEX($C$5:$AG$5,1,MATCH(\"P\",$C16:$AG16,1))),\"\")","v":""},"",11,0,{"$f":"IF(AP16=0,\"\",IF(SUM(AP16:AP40)<=4,SUM($AP$6:AP16),\"\"))","v":""},"",{"$f":"IF(SUM($AP$6:AP16)>=4,AR16-AJ16,0)","v":0},{"$f":"IF(COUNT($AS$6:AS16)>0,30-AS16,\"\")","v":30},null,null,15,2030]
[null,"DICIEMBRE",null,null,null,null,null,null,null,null,null,null,null,null,null,null,null,null,null,null,null,null,null,null,null,null,null,null,null,null,null,null,null,null,{"$f":"IF(AND(AJ17=\"\",AM17=\"\"),\"\",ROWS($AJ$1:AJ12))","v":""},{"$f":"IFERROR(DATE($B$5,ROWS($AJ$1:AJ12),INDEX($C$5:$AG$5,1,MATCH(\"S\",$C17:$AG17,0))),\"\")","v":""},0,0,{"$f":"IFERROR(DATE($B$5,ROWS($AJ$1:AJ12),INDEX($C$5:$AG$5,1,MATCH(\"P\",$C17:$AG17,1))),\"\")","v":""},"",12,0,{"$f":"IF(AP17=0,\"\",IF(SUM(AP17:AP41)<=4,SUM($AP$6:AP17),\"\"))","v":""},"",{"$f":"IF(SUM($AP$6:AP17)>=4,AR17-AJ17,0)","v":0},{"$f":"IF(COUNT($AS$6:AS17)>0,30-AS17,\"\")","v":30},null,null,16,2031]
[null,{"$f":"B5+1","v":2018},1,2,3,4,5,6,7,8,9,10,11,12,13,14,15,16,17,18,19,20,21,22,23,24,25,26,27,28,29,30,31,null,{"$f":"IF(AND(AJ18=\"\",AM18=\"\"),\"\",ROWS($AJ$1:AJ13))","v":""},null,0,0,{"$f":"IFERROR(DATE($B$5,ROWS($AJ$1:AJ13),INDEX($C$5:$AG$5,1,MATCH(\"P\",$C18:$AG18,1))),\"\")","v":""},{"$f":"IF(AND(AJ18=\"\",AM18=\"\"),\"\",IF(AND(AJ18<>\"\",AM18=\"\"),\"S\",IF(AND(AJ18=\"\",AM18<>\"\"),\"P\",IF(AJ18>AM18,\"S\",\"P\"))))","v":""},null,0,{"$f":"IF(AP18=0,\"\",IF(SUM(AP18:AP42)<=4,SUM($AP$6:AP18),\"\"))","v":""},null,{"$f":"IF(SUM($AP$6:AP18)>=4,AR18-AJ18,0)","v":0},null,null,null,17,2032]
[null,"ENERO",null,null,null,null,null,null,null,null,null,null,null,null,null,null,null,null,null,null,null,null,null,null,null,null,null,null,null,null,null,null,null,null,{"$f":"IF(AND(AJ19=\"\",AM19=\"\"),\"\",ROWS($AJ$1:AJ14))","v":""},{"$f":"IFERROR(DATE($B$18,ROWS($AJ$1:AJ1),INDEX($C$5:$AG$5,1,MATCH(\"S\",$C19:$AG19,0))),\"\")","v":""},0,0,{"$f":"IFERROR(DATE($B$18,ROWS($AJ$1:AJ1),INDEX($C$5:$AG$5,1,MATCH(\"P\",$C19:$AG19,1))),\"\")","v":""},"",13,0,{"$f":"IF(AP19=0,\"\",IF(SUM(AP19:AP43)<=4,SUM($AP$6:AP19),\"\"))","v":""},{"$f":"IFERROR(EOMONTH(AJ19,0),\"\")","v":""},{"$f":"IF(SUM($AP$6:AP19)>=4,AR19-AJ19,0)","v":0},{"$f":"IF(COUNT($AS$6:AS19)>0,30-AS19,\"\")","v":30},null,null,18,2033]
[null,"FEBRERO",null,null,null,null,null,null,null,null,null,null,null,null,null,null,null,null,null,null,null,null,null,null,null,null,null,null,null,null,null,null,null,null,{"$f":"IF(AND(AJ20=\"\",AM20=\"\"),\"\",ROWS($AJ$1:AJ15))","v":""},{"$f":"IFERROR(DATE($B$18,ROWS($AJ$1:AJ2),INDEX($C$5:$AG$5,1,MATCH(\"S\",$C20:$AG20,0))),\"\")","v":""},0,0,{"$f":"IFERROR(DATE($B$18,ROWS($AJ$1:AJ2),INDEX($C$5:$AG$5,1,MATCH(\"P\",$C20:$AG20,1))),\"\")","v":""},"",14,0,{"$f":"IF(AP20=0,\"\",IF(SUM(AP20:AP44)<=4,SUM($AP$6:AP20),\"\"))","v":""},{"$f":"IFERROR(EOMONTH(AJ20,0),\"\")","v":""},{"$f":"IF(AQ20=4,AR20-AJ20,0)","v":0},{"$f":"IF(COUNT($AS$6:AS20)>0,30-AS20,\"\")","v":30},null,null,19,2034]
[null,"MARZO",null,null,null,null,null,null,null,null,null,null,null,null,null,null,null,null,null,null,null,null,null,null,null,null,null,null,null,null,null,null,null,null,{"$f":"IF(AND(AJ21=\"\",AM21=\"\"),\"\",ROWS($AJ$1:AJ16))","v":""},{"$f":"IFERROR(DATE($B$18,ROWS($AJ$1:AJ3),INDEX($C$5:$AG$5,1,MATCH(\"S\",$C21:$AG21,0))),\"\")","v":""},0,0,{"$f":"IFERROR(DATE($B$18,ROWS($AJ$1:AJ3),INDEX($C$5:$AG$5,1,MATCH(\"P\",$C21:$AG21,1))),\"\")","v":""},"",15,0,{"$f":"IF(AP21=0,\"\",IF(SUM(AP21:AP45)<=4,SUM($AP$6:AP21),\"\"))","v":""},"",0,{"$f":"IF(COUNT($AS$6:AS21)>0,30-AS21,\"\")","v":30},null,null,20,2035]
[null,"ABRIL",null,null,null,null,null,null,null,null,null,null,null,null,null,null,null,null,null,null,null,null,null,null,null,null,null,null,null,null,null,null,null,null,{"$f":"IF(AND(AJ22=\"\",AM22=\"\"),\"\",ROWS($AJ$1:AJ17))","v":""},{"$f":"IFERROR(DATE($B$18,ROWS($AJ$1:AJ4),INDEX($C$5:$AG$5,1,MATCH(\"S\",$C22:$AG22,0))),\"\")","v":""},0,0,{"$f":"IFERROR(DATE($B$18,ROWS($AJ$1:AJ4),INDEX($C$5:$AG$5,1,MATCH(\"P\",$C22:$AG22,1))),\"\")","v":""},"",16,0,{"$f":"IF(AP22=0,\"\",IF(SUM(AP22:AP46)<=4,SUM($AP$6:AP22),\"\"))","v":""},"",0,{"$f":"IF(COUNT($AS$6:AS22)>0,30-AS22,\"\")","v":30},null,null,21,2036]
[null,"MAYO",null,null,null,null,null,null,null,null,null,null,null,null,null,null,null,null,null,null,null,null,null,null,null,null,null,null,null,null,null,null,null,null,{"$f":"IF(AND(AJ23=\"\",AM23=\"\"),\"\",ROWS($AJ$1:AJ18))","v":""},{"$f":"IFERROR(DATE($B$18,ROWS($AJ$1:AJ5),INDEX($C$5:$AG$5,1,MATCH(\"S\",$C23:$AG23,0))),\"\")","v":""},0,0,{"$f":"IFERROR(DATE($B$18,ROWS($AJ$1:AJ5),INDEX($C$5:$AG$5,1,MATCH(\"P\",$C23:$AG23,1))),\"\")","v":""},"",17,0,{"$f":"IF(AP23=0,\"\",IF(SUM(AP23:AP47)<=4,SUM($AP$6:AP23),\"\"))","v":""},"",0,{"$f":"IF(COUNT($AS$6:AS23)>0,30-AS23,\"\")","v":30},null,null,22,2037]
[null,"JUNIO",null,null,null,null,null,null,null,null,null,null,null,null,null,null,null,null,null,null,null,null,null,null,null,null,null,null,null,null,null,null,null,null,{"$f":"IF(AND(AJ24=\"\",AM24=\"\"),\"\",ROWS($AJ$1:AJ19))","v":""},{"$f":"IFERROR(DATE($B$18,ROWS($AJ$1:AJ6),INDEX($C$5:$AG$5,1,MATCH(\"S\",$C24:$AG24,0))),\"\")","v":""},0,0,{"$f":"IFERROR(DATE($B$18,ROWS($AJ$1:AJ6),INDEX($C$5:$AG$5,1,MATCH(\"P\",$C24:$AG24,1))),\"\")","v":""},"",18,0,{"$f":"IF(AP24=0,\"\",IF(SUM(AP24:AP48)<=4,SUM($AP$6:AP24),\"\"))","v":""},"",0,{"$f":"IF(COUNT($AS$6:AS24)>0,30-AS24,\"\")","v":30},null,null,23,2038]
[null,"JULIO",null,null,null,null,null,null,null,null,null,null,null,null,null,null,null,null,null,null,null,null,null,null,null,null,null,null,null,null,null,null,null,null,{"$f":"IF(AND(AJ25=\"\",AM25=\"\"),\"\",ROWS($AJ$1:AJ20))","v":""},{"$f":"IFERROR(DATE($B$18,ROWS($AJ$1:AJ7),INDEX($C$5:$AG$5,1,MATCH(\"S\",$C25:$AG25,0))),\"\")","v":""},0,0,{"$f":"IFERROR(DATE($B$18,ROWS($AJ$1:AJ7),INDEX($C$5:$AG$5,1,MATCH(\"P\",$C25:$AG25,1))),\"\")","v":""},"",19,0,{"$f":"IF(AP25=0,\"\",IF(SUM(AP25:AP49)<=4,SUM($AP$6:AP25),\"\"))","v":""},"",0,{"$f":"IF(COUNT($AS$6:AS25)>0,30-AS25,\"\")","v":30},null,null,24,2039]
[null,"AGOSTO",null,null,null,null,null,null,null,null,null,null,null,null,null,null,null,null,null,null,null,null,null,null,null,null,null,null,null,null,null,null,null,null,{"$f":"IF(AND(AJ26=\"\",AM26=\"\"),\"\",ROWS($AJ$1:AJ21))","v":""},{"$f":"IFERROR(DATE($B$18,ROWS($AJ$1:AJ8),INDEX($C$5:$AG$5,1,MATCH(\"S\",$C26:$AG26,0))),\"\")","v":""},0,0,{"$f":"IFERROR(DATE($B$18,ROWS($AJ$1:AJ8),INDEX($C$5:$AG$5,1,MATCH(\"P\",$C26:$AG26,1))),\"\")","v":""},"",20,0,{"$f":"IF(AP26=0,\"\",IF(SUM(AP26:AP50)<=4,SUM($AP$6:AP26),\"\"))","v":""},"",0,{"$f":"IF(COUNT($AS$6:AS26)>0,30-AS26,\"\")","v":30},null,null,25,2040]
[null,"SEPTIEMBRE",null,null,null,null,null,null,null,null,null,null,null,null,null,null,null,null,null,null,null,null,null,null,null,null,null,null,null,null,null,null,null,null,{"$f":"IF(AND(AJ27=\"\",AM27=\"\"),\"\",ROWS($AJ$1:AJ22))","v":""},{"$f":"IFERROR(DATE($B$18,ROWS($AJ$1:AJ9),INDEX($C$5:$AG$5,1,MATCH(\"S\",$C27:$AG27,0))),\"\")","v":""},0,0,{"$f":"IFERROR(DATE($B$18,ROWS($AJ$1:AJ9),INDEX($C$5:$AG$5,1,MATCH(\"P\",$C27:$AG27,1))),\"\")","v":""},"",21,0,{"$f":"IF(AP27=0,\"\",IF(SUM(AP27:AP51)<=4,SUM($AP$6:AP27),\"\"))","v":""},"",0,{"$f":"IF(COUNT($AS$6:AS27)>0,30-AS27,\"\")","v":30},null,null,26,2041]
[null,"OCTUBRE",null,null,null,null,null,null,null,null,null,null,null,null,null,null,null,null,null,null,null,null,null,null,null,null,null,null,null,null,null,null,null,null,{"$f":"IF(AND(AJ28=\"\",AM28=\"\"),\"\",ROWS($AJ$1:AJ23))","v":""},{"$f":"IFERROR(DATE($B$18,ROWS($AJ$1:AJ10),INDEX($C$5:$AG$5,1,MATCH(\"S\",$C28:$AG28,0))),\"\")","v":""},0,0,{"$f":"IFERROR(DATE($B$18,ROWS($AJ$1:AJ10),INDEX($C$5:$AG$5,1,MATCH(\"P\",$C28:$AG28,1))),\"\")","v":""},"",22,0,{"$f":"IF(AP28=0,\"\",IF(SUM(AP28:AP52)<=4,SUM($AP$6:AP28),\"\"))","v":""},"",0,{"$f":"IF(COUNT($AS$6:AS28)>0,30-AS28,\"\")","v":30},null,null,27,2042]
[null,"NOVIEMBRE",null,null,null,null,null,null,null,null,null,null,null,null,null,null,null,null,null,null,null,null,null,null,null,null,null,null,null,null,null,null,null,null,{"$f":"IF(AND(AJ29=\"\",AM29=\"\"),\"\",ROWS($AJ$1:AJ24))","v":""},{"$f":"IFERROR(DATE($B$18,ROWS($AJ$1:AJ11),INDEX($C$5:$AG$5,1,MATCH(\"S\",$C29:$AG29,0))),\"\")","v":""},0,0,{"$f":"IFERROR(DATE($B$18,ROWS($AJ$1:AJ11),INDEX($C$5:$AG$5,1,MATCH(\"P\",$C29:$AG29,1))),\"\")","v":""},"",23,0,{"$f":"IF(AP29=0,\"\",IF(SUM(AP29:AP53)<=4,SUM($AP$6:AP29),\"\"))","v":""},"",0,{"$f":"IF(COUNT($AS$6:AS29)>0,30-AS29,\"\")","v":30},null,null,28,2043]
[null,"DICIEMBRE",null,null,null,null,null,null,null,null,null,null,null,null,null,null,null,null,null,null,null,null,null,null,null,null,null,null,null,null,null,null,null,null,{"$f":"IF(AND(AJ30=\"\",AM30=\"\"),\"\",ROWS($AJ$1:AJ25))","v":""},{"$f":"IFERROR(DATE($B$18,ROWS($AJ$1:AJ12),INDEX($C$5:$AG$5,1,MATCH(\"S\",$C30:$AG30,0))),\"\")","v":""},0,0,{"$f":"IFERROR(DATE($B$18,ROWS($AJ$1:AJ12),INDEX($C$5:$AG$5,1,MATCH(\"P\",$C30:$AG30,1))),\"\")","v":""},"",24,0,{"$f":"IF(AP30=0,\"\",IF(SUM(AP30:AP54)<=4,SUM($AP$6:AP30),\"\"))","v":""},"",0,{"$f":"IF(COUNT($AS$6:AS30)>0,30-AS30,\"\")","v":30},null,null,29,2044]
[null,null,null,null,null,null,null,null,null,null,null,null,null,null,null,null,null,null,null,null,null,null,null,null,null,null,null,null,null,null,null,null,null,null,null,null,null,null,null,null,null,null,"FECHA MIN.",null,null,null,null,null,30,2045]
[null,null,null,null,null,null,null,null,null,null,null,null,null,null,null,null,null,null,null,null,null,null,null,null,null,null,null,null,null,null,null,null,null,null,{"$f":"MAX(AI6:AI30)","v":0},{"$f":"VLOOKUP(AI32,$AI$6:$AJ$30,2,0)","v":{"$error":"#N/A"}},null,null,{"$f":"VLOOKUP(AI32,AI6:AM30,5,0)","v":{"$error":"#N/A"}},{"$f":"VLOOKUP(AI32,AI6:AN30,6,0)","v":{"$error":"#N/A"}},32,null,{"$f":"INDEX($AJ$6:$AJ$30,MATCH(MIN(AQ6:AQ30),$AQ$6:$AQ$30,0))","v":{"$error":"#N/A"}},null,null,null,null,null,31,2046]
[null,{"$f":"IF(T33=\"0 DÍAS\",\"YA PUEDE VOLVER A DONAR SANGRE\",\"PUEDE VOLVER A DONAR SANGRE DENTRO DE\")","v":"YA PUEDE VOLVER A DONAR SANGRE"},null,null,null,null,null,null,null,null,null,null,null,null,null,null,null,null,null,{"$f":"IFERROR(IF(AM40<0,0&\" DÍAS\",AM40&\" DÍAS\"),0)&\" DÍAS\"","v":"0 DÍAS"},null,null,null,null,null,"RESETEAR NUEVO AÑO",null,null,null,null,null,null,null,null,null,{"$f":"IF(TODAY()>=DATE(B18,12,31),\"MACRO\",\"NO\")","v":"NO"},null,null,null,null,33,null,"FECHA MAX.",null,null,null,null,null,32,2047]
[null,null,null,null,null,null,null,null,null,null,null,null,null,null,null,null,null,null,null,null,null,null,null,null,null,null,null,null,null,null,null,null,null,null,34,{"$f":"IF(AJ32=\"\",IF(AM32=\"\",\"\",AM32),AJ32)","v":{"$error":"#N/A"}},null,null,null,{"$f":"AN32","v":{"$error":"#N/A"}},34,null,{"$f":"IF(COUNT(AQ6:AQ30)<4,AJ34,DATE(B18,MONTH(AQ32),DAY(AQ32))+1)","v":{"$error":"#N/A"}},null,null,null,null,null,33,2048]
[null,{"$f":"IF(T35=\"0 DÍAS\",\"YA PUEDE VOLVER A DONAR PLASMA\",\"PARA VOLVER A DONAR PLASMA LE FALTAN\")","v":"YA PUEDE VOLVER A DONAR PLASMA"},null,null,null,null,null,null,null,null,null,null,null,null,null,null,null,null,null,{"$f":"IFERROR(IF(AM41<0,0,AM41),0)&\" DÍAS\"","v":"0 DÍAS"},null,null,null,null,null,null,null,null,null,null,null,null,null,null,null,null,"SANGRE",null,null,null,null,null,"DIFERENCIA",null,null,null,null,null,34,2049]
[null,null,null,null,null,null,null,null,null,null,null,null,null,null,null,null,null,null,null,null,null,null,null,null,null,null,null,null,null,null,null,null,null,null,36,{"$f":"IFERROR(IF(AN34=\"S\",IF(AQ34>(AJ34+62),AQ34,AJ34+62),IF(AN34=\"P\",AJ34+2,TODAY())),TODAY())","v":"2018-01-08"},null,null,null,null,36,null,{"$f":"IF(COUNT(AQ6:AQ30)<4,0,AQ34-AQ32)","v":0},"DÍAS",null,null,null,null,35,2050]
[null,"TOTAL DONACIONES ACUMULADAS",null,null,null,null,null,null,null,null,null,null,null,null,null,null,null,null,null,{"$f":"Z37","v":0},null,null,null,null,null,{"$f":"SUM($AK$19:$AK$30,$AL$19:$AL$30)+$AJ$3","v":0},null,null,null,null,null,null,null,null,null,null,"PLASMA",null,null,null,null,null,{"$f":"IF(AQ36<361,\"PUEDE DONAR\",\"NO PUEDE DONAR\")","v":"PUEDE DONAR"},null,null,null,null,null,36,2051]
[null,null,null,null,null,null,null,null,null,null,null,null,null,null,null,null,null,null,null,null,null,null,null,null,null,null,null,null,null,null,null,null,null,null,38,{"$f":"IF(AN34=\"S\",AJ34+31,IF(AN34=\"P\",AJ34+16,\"\"))","v":{"$error":"#N/A"}},null,null,null,null,null,null,"FALTAN PARA DONAR",null,null,null,null,null,37,2052]
[null,null,null,null,null,null,null,null,null,null,null,null,null,null,null,null,null,null,null,null,null,null,null,null,null,null,null,null,null,null,null,null,null,null,null,null,null,null,null,null,39,null,{"$f":"IF(COUNT(AQ6:AQ30)<4,0,366-AQ36-(AQ43-AQ34))","v":0},"DÍAS",null,null,null,null,38,2053]
[null,null,null,null,null,null,null,null,null,null,null,"NUEVOS INTERVALOS DE TIEMPO ENTRE LOS DISTINTOS TIPOS DE DONACIONES",null,null,null,null,null,null,null,null,null,null,null,null,null,null,null,null,null,null,null,null,null,null,null,null,null,"SANGRE",{"$f":"IF(AQ34>AJ36,AQ34-TODAY(),AJ36-TODAY())","v":{"$error":"#N/A"}},40,null,null,"PERIODO DE 12 MESES PUEDE DONAR EL DÍA",null,null,null,null,null,39,2054]
[null,null,null,null,null,null,null,null,null,null,null,null,null,null,null,null,null,null,null,null,null,null,null,null,null,null,null,null,null,null,null,null,null,null,null,null,null,"PLASMA",{"$f":"AJ38-TODAY()","v":{"$error":"#N/A"}},null,41,null,{"$f":"IF(COUNT(AQ6:AQ30)<4,AJ38,AQ32+366)","v":{"$error":"#N/A"}},null,null,null,null,null,40,2055]
[null,null,null,null,"PP",null,"Entre Plasmaféresis a Plasmaféresis",null,null,null,null,null,null,null,null,null,null,null,null,"14 días",null,null,null,null,null,null,null,null,null,null,null,null,null,null,null,null,null,null,null,null,null,null,"HOY",null,null,null,null,null,41,2056]
[null,null,null,null,"PQ",null,"Entre Plasmaféresis a Plaquetoféresis",null,null,null,null,null,null,null,null,null,null,null,null,"14 días",null,null,null,null,null,null,null,null,null,null,null,null,null,null,null,null,null,null,null,null,43,null,{"$f":"TODAY()","v":"2018-01-08"},null,null,null,null,null,42,2057]
[null,null,null,null,"PS",null,"Entre Plasmaféresis a Sangre Total",null,null,null,null,null,null,null,null,null,null,null,null,"2 días",null,null,null,null,null,null,null,null,null,null,null,null,null,null,null,null,null,null,null,null,null,null,null,null,null,null,null,null,43,2058]
[null,null,null,null,null,null,null,null,null,null,null,null,null,null,null,null,null,null,null,null,null,null,null,null,null,null,null,null,null,null,null,null,null,null,null,null,null,null,null,null,null,null,null,null,null,null,null,null,44,2059]
[null,null,null,null,"QP",null,"Entre Plaquetoféresis a Plasmaféresis",null,null,null,null,null,null,null,null,null,null,null,null,"14 días",null,null,null,null,null,null,null,null,null,null,null,null,null,null,null,null,null,null,null,null,null,null,null,null,null,null,null,null,45,2060]
[null,null,null,null,null,null,"Entre Paquetoféresis a Plasmaféresis",null,null,null,null,null,null,null,null,null,null,null,null,null,null,null,null,null,null,null,null,null,null,null,null,null,null,null,null,null,null,null,null,null,null,null,null,null,null,null,null,null,46,2061]
[null,null,null,null,null,null,"Entre Paquetoféresis a Plasmaféresis",null,null,null,null,null,null,null,null,null,null,null,null,null,null,null,null,null,null,null,null,null,null,null,null,null,null,null,null,null,null,null,null,null,null,null,null,null,null,null,null,null,47,2062]
[null,2016,1,2,3,4,"Entre Paquetoféresis a Plasmaféresis",6,7,8,9,10,11,12,13,14,15,16,17,null,null,null,21,22,23,24,25,26,27,28,29,30,31,null,null,null,null,null,null,null,null,null,null,null,null,null,null,null,48,2063]
[null,"ENERO",null,null,null,null,"Entre Paquetoféresis a Plasmaféresis",null,null,null,null,null,null,null,null,null,null,null,null,null,null,null,null,null,null,null,null,null,null,null,null,null,null,null,null,null,null,null,null,null,null,null,null,null,null,null,null,null,49,2064]
[null,"FEBRERO",null,null,null,null,"Entre Paquetoféresis a Plasmaféresis",null,"S",null,null,null,null,null,null,null,null,null,null,null,null,null,null,null,null,null,null,null,null,null,null,null,null,null,null,null,null,null,null,null,null,null,null,null,null,null,null,null,50,2065]
[null,"MARZO",null,null,null,null,"Entre Paquetoféresis a Plasmaféresis",null,null,null,null,null,null,null,null,null,null,null,null,null,null,null,null,null,null,null,null,null,null,null,null,null,null,null,null,null,null,null,null,null,null,null,null,null,null,null,null,null,51,2066]
[null,"ABRIL",null,null,null,null,"Entre Paquetoféresis a Plasmaféresis",null,null,null,null,null,null,null,null,null,null,null,null,null,null,null,null,null,null,null,null,null,null,null,null,null,null,null,null,null,null,null,null,null,null,null,null,null,null,null,null,null,52,2067]
[null,"MAYO",null,null,null,null,"Entre Paquetoféresis a Plasmaféresis",null,null,null,null,null,null,null,null,null,null,null,null,null,null,null,null,null,null,null,null,null,null,null,null,"S",null,null,null,null,null,null,null,null,null,null,null,null,null,null,null,null,53,2068]
[null,"JUNIO",null,null,null,null,"Entre Paquetoféresis a Plasmaféresis",null,null,null,null,null,null,null,null,null,null,null,null,null,null,null,null,null,null,null,null,null,null,null,null,null,null,null,null,null,null,null,null,null,null,null,null,null,null,null,null,null,54,2069]
[null,"JULIO",null,null,null,null,"Entre Paquetoféresis a Plasmaféresis",null,null,null,null,null,null,null,null,null,null,null,null,null,null,null,null,null,null,null,null,null,null,null,null,null,null,null,null,null,null,null,null,null,null,null,null,null,null,null,null,null,55,2070]
[null,"AGOSTO",null,null,null,null,"Entre Paquetoféresis a Plasmaféresis",null,null,null,null,null,null,null,null,null,null,null,null,null,null,null,null,null,null,null,null,null,null,null,null,"S",null,null,null,null,null,null,null,null,null,null,null,null,null,null,null,null,56,2071]
[null,"SEPTIEMBRE",null,null,null,null,"Entre Paquetoféresis a Plasmaféresis",null,null,null,null,null,null,null,null,null,null,null,null,null,null,null,null,null,null,null,null,null,null,null,null,null,null,null,null,null,null,null,null,null,null,null,null,null,null,null,null,null,57,2072]
[null,"OCTUBRE",null,null,null,null,"Entre Paquetoféresis a Plasmaféresis",null,null,null,null,null,null,null,null,null,null,null,null,null,null,null,null,null,null,null,null,null,null,null,null,null,null,null,null,null,null,null,null,null,null,null,null,null,null,null,null,null,58,2073]
[null,"NOVIEMBRE",null,null,null,"P","Entre Paquetoféresis a Plasmaféresis",null,null,null,null,null,null,null,null,null,null,null,null,null,null,null,null,null,null,null,null,null,null,null,null,null,null,null,null,null,null,null,null,null,null,null,null,null,null,null,null,null,59,2074]
[null,"DICIEMBRE",null,null,null,null,"Entre Paquetoféresis a Plasmaféresis",null,null,null,null,null,null,null,null,"S",null,null,null,null,null,null,null,null,null,null,null,null,null,null,null,null,null,null,null,null,null,null,null,null,null,null,null,null,null,null,null,null,60,2075]
[null,null,null,null,null,null,"Entre Paquetoféresis a Plasmaféresis",null,null,null,null,null,null,null,null,null,null,null,null,null,null,null,null,null,null,null,null,null,null,null,null,null,null,null,null,null,null,null,null,null,null,null,null,null,null,null,null,null,61,2076]
[null,null,null,null,null,null,"Entre Paquetoféresis a Plasmaféresis",null,null,null,null,null,null,null,null,null,null,null,null,null,null,null,null,null,null,null,null,null,null,null,null,null,null,null,null,null,null,null,null,null,null,null,null,null,null,null,null,null,62,2077]
[null,null,null,null,"QQ",null,"Entre Plaquetoféresis a Plaquetoféresis",null,null,null,null,null,null,null,null,null,null,null,null,"14 días",null,null,null,null,null,null,null,null,null,null,null,null,null,null,null,null,null,null,null,null,null,null,null,null,null,null,null,null,63,2078]
[null,null,null,null,"QS",null,"Entre Plaquetoféresis a Sangre Total",null,null,null,null,null,null,null,null,null,null,null,null,"2 días",null,null,null,null,null,null,null,null,null,null,null,null,null,null,null,null,null,null,null,null,null,null,null,null,null,null,null,null,64,2079]
[null,null,null,null,null,null,null,null,null,null,null,null,null,null,null,null,null,null,null,null,null,null,null,null,null,null,null,null,null,null,null,null,null,null,null,null,null,null,null,null,null,null,null,null,null,null,null,null,65,2080]
[null,null,null,null,"SP",null,"Entre Sangre Total a Plasmaféresis",null,null,null,null,null,null,null,null,null,null,null,null,"30 días",null,null,null,null,null,null,null,null,null,null,null,null,null,null,null,null,null,null,null,null,null,null,null,null,null,null,null,null,66,2081]
[null,null,null,null,"SQ",null,"Entre Sangre Total a Plaquetoféresis",null,null,null,null,null,null,null,null,null,null,null,null,"60 días",null,null,null,null,null,null,null,null,null,null,null,null,null,null,null,null,null,null,null,null,null,null,null,null,null,null,null,null,67,2082]
[null,null,null,null,"SS",null,"Entre Sangre Total a Sangre Total",null,null,null,null,null,null,null,null,null,null,null,null,"60 días",null,null,null,null,null,null,null,null,null,null,null,null,null,null,null,null,null,null,null,null,null,null,null,null,null,null,null,null,68,2083]
[null,null,null,null,null,null,null,null,null,null,null,null,null,null,null,null,null,null,null,null,null,null,null,null,null,null,null,null,null,null,null,null,null,null,null,null,null,null,null,null,null,null,null,null,null,null,null,null,69,2084]
[null,null,null,null,null,null,null,null,null,null,null,null,null,null,null,null,null,null,null,null,null,null,null,null,null,null,null,null,null,null,null,null,null,null,null,null,null,null,null,null,null,null,null,null,null,null,null,null,70,2085]
[null,null,null,null,null,null,null,null,null,null,null,null,null,null,null,null,null,null,null,null,null,null,null,null,null,null,null,null,null,null,null,null,null,null,null,null,null,null,null,null,null,null,null,null,null,null,null,null,71,2086]
[null,null,null,null,null,null,null,null,null,null,null,null,null,null,null,null,null,null,null,null,null,null,null,null,null,null,null,null,null,null,null,null,null,null,null,null,null,null,null,null,null,null,null,null,null,null,null,null,72,2087]
[null,null,null,null,null,null,null,null,null,null,null,null,null,null,null,null,null,null,null,null,null,null,null,null,null,null,null,null,null,null,null,null,null,null,null,null,null,null,null,null,null,null,null,null,null,null,null,null,73,2088]
[null,null,null,null,null,null,null,null,null,null,null,null,null,null,null,null,null,null,null,null,null,null,null,null,null,null,null,null,null,null,null,null,null,null,null,null,null,null,null,null,null,null,null,null,null,null,null,null,74,2089]
[null,null,null,null,null,null,null,null,null,null,null,null,null,null,null,null,null,null,null,null,null,null,null,null,null,null,null,null,null,null,null,null,null,null,null,null,null,null,null,null,null,null,null,null,null,null,null,null,75,2090]
[null,null,null,null,null,null,null,null,null,null,null,null,null,null,null,null,null,null,null,null,null,null,null,null,null,null,null,null,null,null,null,null,null,null,null,null,null,null,null,null,null,null,null,null,null,null,null,null,76,2091]
[null,null,null,null,null,null,null,null,null,null,null,null,null,null,null,null,null,null,null,null,null,null,null,null,null,null,null,null,null,null,null,null,null,null,null,null,null,null,null,null,null,null,null,null,null,null,null,null,77,2092]
[null,null,null,null,null,null,null,null,null,null,null,null,null,null,null,null,null,null,null,null,null,null,null,null,null,null,null,null,null,null,null,null,null,null,null,null,null,null,null,null,null,null,null,null,null,null,null,null,78,2093]
[null,null,null,null,null,null,null,null,null,null,null,null,null,null,null,null,null,null,null,null,null,null,null,null,null,null,null,null,null,null,null,null,null,null,null,null,null,null,null,null,null,null,null,null,null,null,null,null,79,2094]
[null,null,null,null,null,null,null,null,null,null,null,null,null,null,null,null,null,null,null,null,null,null,null,null,null,null,null,null,null,null,null,null,null,null,null,null,null,null,null,null,null,null,null,null,null,null,null,null,80,2095]
[null,null,null,null,null,null,null,null,null,null,null,null,null,null,null,null,null,null,null,null,null,null,null,null,null,null,null,null,null,null,null,null,null,null,null,null,null,null,null,null,null,null,null,null,null,null,null,null,81,2096]
[null,null,null,null,null,null,null,null,null,null,null,null,null,null,null,null,null,null,null,null,null,null,null,null,null,null,null,null,null,null,null,null,null,null,null,null,null,null,null,null,null,null,null,null,null,null,null,null,82,2097]
[null,null,null,null,null,null,null,null,null,null,null,null,null,null,null,null,null,null,null,null,null,null,null,null,null,null,null,null,null,null,null,null,null,null,null,null,null,null,null,null,null,null,null,null,null,null,null,null,83,2098]
[null,null,null,null,null,null,null,null,null,null,null,null,null,null,null,null,null,null,null,null,null,null,null,null,null,null,null,null,null,null,null,null,null,null,null,null,null,null,null,null,null,null,null,null,null,null,null,null,84,2099]
[null,null,null,null,null,null,null,null,null,null,null,null,null,null,null,null,null,null,null,null,null,null,null,null,null,null,null,null,null,null,null,null,null,null,null,null,null,null,null,null,null,null,null,null,null,null,null,null,85,2100]
[null,null,null,null,null,null,null,null,null,null,null,null,null,null,null,null,null,null,null,null,null,null,null,null,null,null,null,null,null,null,null,null,null,null,null,null,null,null,null,null,null,null,null,null,null,null,null,null,86]
[null,null,null,null,null,null,null,null,null,null,null,null,null,null,null,null,null,null,null,null,null,null,null,null,null,null,null,null,null,null,null,null,null,null,null,null,null,null,null,null,null,null,null,null,null,null,null,null,87]
[null,null,null,null,null,null,null,null,null,null,null,null,null,null,null,null,null,null,null,null,null,null,null,null,null,null,null,null,null,null,null,null,null,null,null,null,null,null,null,null,null,null,null,null,null,null,null,null,88]
[null,null,null,null,null,null,null,null,null,null,null,null,null,null,null,null,null,null,null,null,null,null,null,null,null,null,null,null,null,null,null,null,null,null,null,null,null,null,null,null,null,null,null,null,null,null,null,null,89]
[null,null,null,null,null,null,null,null,null,null,null,null,null,null,null,null,null,null,null,null,null,null,null,null,null,null,null,null,null,null,null,null,null,null,null,null,null,null,null,null,null,null,null,null,null,null,null,null,90]
[null,null,null,null,null,null,null,null,null,null,null,null,null,null,null,null,null,null,null,null,null,null,null,null,null,null,null,null,null,null,null,null,null,null,null,null,null,null,null,null,null,null,null,null,null,null,null,null,91]
[null,null,null,null,null,null,null,null,null,null,null,null,null,null,null,null,null,null,null,null,null,null,null,null,null,null,null,null,null,null,null,null,null,null,null,null,null,null,null,null,null,null,null,null,null,null,null,null,92]
[null,null,null,null,null,null,null,null,null,null,null,null,null,null,null,null,null,null,null,null,null,null,null,null,null,null,null,null,null,null,null,null,null,null,null,null,null,null,null,null,null,null,null,null,null,null,null,null,93]
[null,null,null,null,null,null,null,null,null,null,null,null,null,null,null,null,null,null,null,null,null,null,null,null,null,null,null,null,null,null,null,null,null,null,null,null,null,null,null,null,null,null,null,null,null,null,null,null,94]
[null,null,null,null,null,null,null,null,null,null,null,null,null,null,null,null,null,null,null,null,null,null,null,null,null,null,null,null,null,null,null,null,null,null,null,null,null,null,null,null,null,null,null,null,null,null,null,null,95]
[null,null,null,null,null,null,null,null,null,null,null,null,null,null,null,null,null,null,null,null,null,null,null,null,null,null,null,null,null,null,null,null,null,null,null,null,null,null,null,null,null,null,null,null,null,null,null,null,96]
[null,null,null,null,null,null,null,null,null,null,null,null,null,null,null,null,null,null,null,null,null,null,null,null,null,null,null,null,null,null,null,null,null,null,null,null,null,null,null,null,null,null,null,null,null,null,null,null,97]
[null,null,null,null,null,null,null,null,null,null,null,null,null,null,null,null,null,null,null,null,null,null,null,null,null,null,null,null,null,null,null,null,null,null,null,null,null,null,null,null,null,null,null,null,null,null,null,null,98]
[null,null,null,null,null,null,null,null,null,null,null,null,null,null,null,null,null,null,null,null,null,null,null,null,null,null,null,null,null,null,null,null,null,null,null,null,null,null,null,null,null,null,null,null,null,null,null,null,99]
[null,null,null,null,null,null,null,null,null,null,null,null,null,null,null,null,null,null,null,null,null,null,null,null,null,null,null,null,null,null,null,null,null,null,null,null,null,null,null,null,null,null,null,null,null,null,null,null,100]
[null,null,null,null,null,null,null,null,null,null,null,null,null,null,null,null,null,null,null,null,null,null,null,null,null,null,null,null,null,null,null,null,null,null,null,null,null,null,null,null,null,null,null,null,null,null,null,null,101]
[null,null,null,null,null,null,null,null,null,null,null,null,null,null,null,null,null,null,null,null,null,null,null,null,null,null,null,null,null,null,null,null,null,null,null,null,null,null,null,null,null,null,null,null,null,null,null,null,102]
[null,null,null,null,null,null,null,null,null,null,null,null,null,null,null,null,null,null,null,null,null,null,null,null,null,null,null,null,null,null,null,null,null,null,null,null,null,null,null,null,null,null,null,null,null,null,null,null,103]
[null,null,null,null,null,null,null,null,null,null,null,null,null,null,null,null,null,null,null,null,null,null,null,null,null,null,null,null,null,null,null,null,null,null,null,null,null,null,null,null,null,null,null,null,null,null,null,null,104]
[null,null,null,null,null,null,null,null,null,null,null,null,null,null,null,null,null,null,null,null,null,null,null,null,null,null,null,null,null,null,null,null,null,null,null,null,null,null,null,null,null,null,null,null,null,null,null,null,105]
[null,null,null,null,null,null,null,null,null,null,null,null,null,null,null,null,null,null,null,null,null,null,null,null,null,null,null,null,null,null,null,null,null,null,null,null,null,null,null,null,null,null,null,null,null,null,null,null,106]
[null,null,null,null,null,null,null,null,null,null,null,null,null,null,null,null,null,null,null,null,null,null,null,null,null,null,null,null,null,null,null,null,null,null,null,null,null,null,null,null,null,null,null,null,null,null,null,null,107]
[null,null,null,null,null,null,null,null,null,null,null,null,null,null,null,null,null,null,null,null,null,null,null,null,null,null,null,null,null,null,null,null,null,null,null,null,null,null,null,null,null,null,null,null,null,null,null,null,108]
[null,null,null,null,null,null,null,null,null,null,null,null,null,null,null,null,null,null,null,null,null,null,null,null,null,null,null,null,null,null,null,null,null,null,null,null,null,null,null,null,null,null,null,null,null,null,null,null,109]
[null,null,null,null,null,null,null,null,null,null,null,null,null,null,null,null,null,null,null,null,null,null,null,null,null,null,null,null,null,null,null,null,null,null,null,null,null,null,null,null,null,null,null,null,null,null,null,null,110]
[null,null,null,null,null,null,null,null,null,null,null,null,null,null,null,null,null,null,null,null,null,null,null,null,null,null,null,null,null,null,null,null,null,null,null,null,null,null,null,null,null,null,null,null,null,null,null,null,111]
[null,null,null,null,null,null,null,null,null,null,null,null,null,null,null,null,null,null,null,null,null,null,null,null,null,null,null,null,null,null,null,null,null,null,null,null,null,null,null,null,null,null,null,null,null,null,null,null,112]
[null,null,null,null,null,null,null,null,null,null,null,null,null,null,null,null,null,null,null,null,null,null,null,null,null,null,null,null,null,null,null,null,null,null,null,null,null,null,null,null,null,null,null,null,null,null,null,null,113]
[null,null,null,null,null,null,null,null,null,null,null,null,null,null,null,null,null,null,null,null,null,null,null,null,null,null,null,null,null,null,null,null,null,null,null,null,null,null,null,null,null,null,null,null,null,null,null,null,114]
[null,null,null,null,null,null,null,null,null,null,null,null,null,null,null,null,null,null,null,null,null,null,null,null,null,null,null,null,null,null,null,null,null,null,null,null,null,null,null,null,null,null,null,null,null,null,null,null,115]
[null,null,null,null,null,null,null,null,null,null,null,null,null,null,null,null,null,null,null,null,null,null,null,null,null,null,null,null,null,null,null,null,null,null,null,null,null,null,null,null,null,null,null,null,null,null,null,null,116]
[null,null,null,null,null,null,null,null,null,null,null,null,null,null,null,null,null,null,null,null,null,null,null,null,null,null,null,null,null,null,null,null,null,null,null,null,null,null,null,null,null,null,null,null,null,null,null,null,117]
[null,null,null,null,null,null,null,null,null,null,null,null,null,null,null,null,null,null,null,null,null,null,null,null,null,null,null,null,null,null,null,null,null,null,null,null,null,null,null,null,null,null,null,null,null,null,null,null,118]
[null,null,null,null,null,null,null,null,null,null,null,null,null,null,null,null,null,null,null,null,null,null,null,null,null,null,null,null,null,null,null,null,null,null,null,null,null,null,null,null,null,null,null,null,null,null,null,null,119]
[null,null,null,null,null,null,null,null,null,null,null,null,null,null,null,null,null,null,null,null,null,null,null,null,null,null,null,null,null,null,null,null,null,null,null,null,null,null,null,null,null,null,null,null,null,null,null,null,120]
[null,null,null,null,null,null,null,null,null,null,null,null,null,null,null,null,null,null,null,null,null,null,null,null,null,null,null,null,null,null,null,null,null,null,null,null,null,null,null,null,null,null,null,null,null,null,null,null,121]
[null,null,null,null,null,null,null,null,null,null,null,null,null,null,null,null,null,null,null,null,null,null,null,null,null,null,null,null,null,null,null,null,null,null,null,null,null,null,null,null,null,null,null,null,null,null,null,null,122]
[null,null,null,null,null,null,null,null,null,null,null,null,null,null,null,null,null,null,null,null,null,null,null,null,null,null,null,null,null,null,null,null,null,null,null,null,null,null,null,null,null,null,null,null,null,null,null,null,123]
[null,null,null,null,null,null,null,null,null,null,null,null,null,null,null,null,null,null,null,null,null,null,null,null,null,null,null,null,null,null,null,null,null,null,null,null,null,null,null,null,null,null,null,null,null,null,null,null,124]
[null,null,null,null,null,null,null,null,null,null,null,null,null,null,null,null,null,null,null,null,null,null,null,null,null,null,null,null,null,null,null,null,null,null,null,null,null,null,null,null,null,null,null,null,null,null,null,null,125]
[null,null,null,null,null,null,null,null,null,null,null,null,null,null,null,null,null,null,null,null,null,null,null,null,null,null,null,null,null,null,null,null,null,null,null,null,null,null,null,null,null,null,null,null,null,null,null,null,126]
[null,null,null,null,null,null,null,null,null,null,null,null,null,null,null,null,null,null,null,null,null,null,null,null,null,null,null,null,null,null,null,null,null,null,null,null,null,null,null,null,null,null,null,null,null,null,null,null,127]
[null,null,null,null,null,null,null,null,null,null,null,null,null,null,null,null,null,null,null,null,null,null,null,null,null,null,null,null,null,null,null,null,null,null,null,null,null,null,null,null,null,null,null,null,null,null,null,null,128]
[null,null,null,null,null,null,null,null,null,null,null,null,null,null,null,null,null,null,null,null,null,null,null,null,null,null,null,null,null,null,null,null,null,null,null,null,null,null,null,null,null,null,null,null,null,null,null,null,129]
[null,null,null,null,null,null,null,null,null,null,null,null,null,null,null,null,null,null,null,null,null,null,null,null,null,null,null,null,null,null,null,null,null,null,null,null,null,null,null,null,null,null,null,null,null,null,null,null,130]
[null,null,null,null,null,null,null,null,null,null,null,null,null,null,null,null,null,null,null,null,null,null,null,null,null,null,null,null,null,null,null,null,null,null,null,null,null,null,null,null,null,null,null,null,null,null,null,null,131]
[null,null,null,null,null,null,null,null,null,null,null,null,null,null,null,null,null,null,null,null,null,null,null,null,null,null,null,null,null,null,null,null,null,null,null,null,null,null,null,null,null,null,null,null,null,null,null,null,132]
[null,null,null,null,null,null,null,null,null,null,null,null,null,null,null,null,null,null,null,null,null,null,null,null,null,null,null,null,null,null,null,null,null,null,null,null,null,null,null,null,null,null,null,null,null,null,null,null,133]
[null,null,null,null,null,null,null,null,null,null,null,null,null,null,null,null,null,null,null,null,null,null,null,null,null,null,null,null,null,null,null,null,null,null,null,null,null,null,null,null,null,null,null,null,null,null,null,null,134]
[null,null,null,null,null,null,null,null,null,null,null,null,null,null,null,null,null,null,null,null,null,null,null,null,null,null,null,null,null,null,null,null,null,null,null,null,null,null,null,null,null,null,null,null,null,null,null,null,135]
[null,null,null,null,null,null,null,null,null,null,null,null,null,null,null,null,null,null,null,null,null,null,null,null,null,null,null,null,null,null,null,null,null,null,null,null,null,null,null,null,null,null,null,null,null,null,null,null,136]
[null,null,null,null,null,null,null,null,null,null,null,null,null,null,null,null,null,null,null,null,null,null,null,null,null,null,null,null,null,null,null,null,null,null,null,null,null,null,null,null,null,null,null,null,null,null,null,null,137]
[null,null,null,null,null,null,null,null,null,null,null,null,null,null,null,null,null,null,null,null,null,null,null,null,null,null,null,null,null,null,null,null,null,null,null,null,null,null,null,null,null,null,null,null,null,null,null,null,138]
[null,null,null,null,null,null,null,null,null,null,null,null,null,null,null,null,null,null,null,null,null,null,null,null,null,null,null,null,null,null,null,null,null,null,null,null,null,null,null,null,null,null,null,null,null,null,null,null,139]
[null,null,null,null,null,null,null,null,null,null,null,null,null,null,null,null,null,null,null,null,null,null,null,null,null,null,null,null,null,null,null,null,null,null,null,null,null,null,null,null,null,null,null,null,null,null,null,null,140]
[null,null,null,null,null,null,null,null,null,null,null,null,null,null,null,null,null,null,null,null,null,null,null,null,null,null,null,null,null,null,null,null,null,null,null,null,null,null,null,null,null,null,null,null,null,null,null,null,141]
[null,null,null,null,null,null,null,null,null,null,null,null,null,null,null,null,null,null,null,null,null,null,null,null,null,null,null,null,null,null,null,null,null,null,null,null,null,null,null,null,null,null,null,null,null,null,null,null,142]
[null,null,null,null,null,null,null,null,null,null,null,null,null,null,null,null,null,null,null,null,null,null,null,null,null,null,null,null,null,null,null,null,null,null,null,null,null,null,null,null,null,null,null,null,null,null,null,null,143]
[null,null,null,null,null,null,null,null,null,null,null,null,null,null,null,null,null,null,null,null,null,null,null,null,null,null,null,null,null,null,null,null,null,null,null,null,null,null,null,null,null,null,null,null,null,null,null,null,144]
[null,null,null,null,null,null,null,null,null,null,null,null,null,null,null,null,null,null,null,null,null,null,null,null,null,null,null,null,null,null,null,null,null,null,null,null,null,null,null,null,null,null,null,null,null,null,null,null,145]
[null,null,null,null,null,null,null,null,null,null,null,null,null,null,null,null,null,null,null,null,null,null,null,null,null,null,null,null,null,null,null,null,null,null,null,null,null,null,null,null,null,null,null,null,null,null,null,null,146]
[null,null,null,null,null,null,null,null,null,null,null,null,null,null,null,null,null,null,null,null,null,null,null,null,null,null,null,null,null,null,null,null,null,null,null,null,null,null,null,null,null,null,null,null,null,null,null,null,147]
[null,null,null,null,null,null,null,null,null,null,null,null,null,null,null,null,null,null,null,null,null,null,null,null,null,null,null,null,null,null,null,null,null,null,null,null,null,null,null,null,null,null,null,null,null,null,null,null,148]
[null,null,null,null,null,null,null,null,null,null,null,null,null,null,null,null,null,null,null,null,null,null,null,null,null,null,null,null,null,null,null,null,null,null,null,null,null,null,null,null,null,null,null,null,null,null,null,null,149]
[null,null,null,null,null,null,null,null,null,null,null,null,null,null,null,null,null,null,null,null,null,null,null,null,null,null,null,null,null,null,null,null,null,null,null,null,null,null,null,null,null,null,null,null,null,null,null,null,150]
[null,null,null,null,null,null,null,null,null,null,null,null,null,null,null,null,null,null,null,null,null,null,null,null,null,null,null,null,null,null,null,null,null,null,null,null,null,null,null,null,null,null,null,null,null,null,null,null,151]
[null,null,null,null,null,null,null,null,null,null,null,null,null,null,null,null,null,null,null,null,null,null,null,null,null,null,null,null,null,null,null,null,null,null,null,null,null,null,null,null,null,null,null,null,null,null,null,null,152]
[null,null,null,null,null,null,null,null,null,null,null,null,null,null,null,null,null,null,null,null,null,null,null,null,null,null,null,null,null,null,null,null,null,null,null,null,null,null,null,null,null,null,null,null,null,null,null,null,153]
[null,null,null,null,null,null,null,null,null,null,null,null,null,null,null,null,null,null,null,null,null,null,null,null,null,null,null,null,null,null,null,null,null,null,null,null,null,null,null,null,null,null,null,null,null,null,null,null,154]
[null,null,null,null,null,null,null,null,null,null,null,null,null,null,null,null,null,null,null,null,null,null,null,null,null,null,null,null,null,null,null,null,null,null,null,null,null,null,null,null,null,null,null,null,null,null,null,null,155]
[null,null,null,null,null,null,null,null,null,null,null,null,null,null,null,null,null,null,null,null,null,null,null,null,null,null,null,null,null,null,null,null,null,null,null,null,null,null,null,null,null,null,null,null,null,null,null,null,156]
[null,null,null,null,null,null,null,null,null,null,null,null,null,null,null,null,null,null,null,null,null,null,null,null,null,null,null,null,null,null,null,null,null,null,null,null,null,null,null,null,null,null,null,null,null,null,null,null,157]
[null,null,null,null,null,null,null,null,null,null,null,null,null,null,null,null,null,null,null,null,null,null,null,null,null,null,null,null,null,null,null,null,null,null,null,null,null,null,null,null,null,null,null,null,null,null,null,null,158]
[null,null,null,null,null,null,null,null,null,null,null,null,null,null,null,null,null,null,null,null,null,null,null,null,null,null,null,null,null,null,null,null,null,null,null,null,null,null,null,null,null,null,null,null,null,null,null,null,159]
[null,null,null,null,null,null,null,null,null,null,null,null,null,null,null,null,null,null,null,null,null,null,null,null,null,null,null,null,null,null,null,null,null,null,null,null,null,null,null,null,null,null,null,null,null,null,null,null,160]
[null,null,null,null,null,null,null,null,null,null,null,null,null,null,null,null,null,null,null,null,null,null,null,null,null,null,null,null,null,null,null,null,null,null,null,null,null,null,null,null,null,null,null,null,null,null,null,null,161]
[null,null,null,null,null,null,null,null,null,null,null,null,null,null,null,null,null,null,null,null,null,null,null,null,null,null,null,null,null,null,null,null,null,null,null,null,null,null,null,null,null,null,null,null,null,null,null,null,162]
[null,null,null,null,null,null,null,null,null,null,null,null,null,null,null,null,null,null,null,null,null,null,null,null,null,null,null,null,null,null,null,null,null,null,null,null,null,null,null,null,null,null,null,null,null,null,null,null,163]
[null,null,null,null,null,null,null,null,null,null,null,null,null,null,null,null,null,null,null,null,null,null,null,null,null,null,null,null,null,null,null,null,null,null,null,null,null,null,null,null,null,null,null,null,null,null,null,null,164]
[null,null,null,null,null,null,null,null,null,null,null,null,null,null,null,null,null,null,null,null,null,null,null,null,null,null,null,null,null,null,null,null,null,null,null,null,null,null,null,null,null,null,null,null,null,null,null,null,165]
[null,null,null,null,null,null,null,null,null,null,null,null,null,null,null,null,null,null,null,null,null,null,null,null,null,null,null,null,null,null,null,null,null,null,null,null,null,null,null,null,null,null,null,null,null,null,null,null,166]
[null,null,null,null,null,null,null,null,null,null,null,null,null,null,null,null,null,null,null,null,null,null,null,null,null,null,null,null,null,null,null,null,null,null,null,null,null,null,null,null,null,null,null,null,null,null,null,null,167]
[null,null,null,null,null,null,null,null,null,null,null,null,null,null,null,null,null,null,null,null,null,null,null,null,null,null,null,null,null,null,null,null,null,null,null,null,null,null,null,null,null,null,null,null,null,null,null,null,168]
[null,null,null,null,null,null,null,null,null,null,null,null,null,null,null,null,null,null,null,null,null,null,null,null,null,null,null,null,null,null,null,null,null,null,null,null,null,null,null,null,null,null,null,null,null,null,null,null,169]
[null,null,null,null,null,null,null,null,null,null,null,null,null,null,null,null,null,null,null,null,null,null,null,null,null,null,null,null,null,null,null,null,null,null,null,null,null,null,null,null,null,null,null,null,null,null,null,null,170]
[null,null,null,null,null,null,null,null,null,null,null,null,null,null,null,null,null,null,null,null,null,null,null,null,null,null,null,null,null,null,null,null,null,null,null,null,null,null,null,null,null,null,null,null,null,null,null,null,171]
[null,null,null,null,null,null,null,null,null,null,null,null,null,null,null,null,null,null,null,null,null,null,null,null,null,null,null,null,null,null,null,null,null,null,null,null,null,null,null,null,null,null,null,null,null,null,null,null,172]
[null,null,null,null,null,null,null,null,null,null,null,null,null,null,null,null,null,null,null,null,null,null,null,null,null,null,null,null,null,null,null,null,null,null,null,null,null,null,null,null,null,null,null,null,null,null,null,null,173]
[null,null,null,null,null,null,null,null,null,null,null,null,null,null,null,null,null,null,null,null,null,null,null,null,null,null,null,null,null,null,null,null,null,null,null,null,null,null,null,null,null,null,null,null,null,null,null,null,174]
[null,null,null,null,null,null,null,null,null,null,null,null,null,null,null,null,null,null,null,null,null,null,null,null,null,null,null,null,null,null,null,null,null,null,null,null,null,null,null,null,null,null,null,null,null,null,null,null,175]
[null,null,null,null,null,null,null,null,null,null,null,null,null,null,null,null,null,null,null,null,null,null,null,null,null,null,null,null,null,null,null,null,null,null,null,null,null,null,null,null,null,null,null,null,null,null,null,null,176]
[null,null,null,null,null,null,null,null,null,null,null,null,null,null,null,null,null,null,null,null,null,null,null,null,null,null,null,null,null,null,null,null,null,null,null,null,null,null,null,null,null,null,null,null,null,null,null,null,177]
[null,null,null,null,null,null,null,null,null,null,null,null,null,null,null,null,null,null,null,null,null,null,null,null,null,null,null,null,null,null,null,null,null,null,null,null,null,null,null,null,null,null,null,null,null,null,null,null,178]
[null,null,null,null,null,null,null,null,null,null,null,null,null,null,null,null,null,null,null,null,null,null,null,null,null,null,null,null,null,null,null,null,null,null,null,null,null,null,null,null,null,null,null,null,null,null,null,null,179]
[null,null,null,null,null,null,null,null,null,null,null,null,null,null,null,null,null,null,null,null,null,null,null,null,null,null,null,null,null,null,null,null,null,null,null,null,null,null,null,null,null,null,null,null,null,null,null,null,180]
[null,null,null,null,null,null,null,null,null,null,null,null,null,null,null,null,null,null,null,null,null,null,null,null,null,null,null,null,null,null,null,null,null,null,null,null,null,null,null,null,null,null,null,null,null,null,null,null,181]
[null,null,null,null,null,null,null,null,null,null,null,null,null,null,null,null,null,null,null,null,null,null,null,null,null,null,null,null,null,null,null,null,null,null,null,null,null,null,null,null,null,null,null,null,null,null,null,null,182]
[null,null,null,null,null,null,null,null,null,null,null,null,null,null,null,null,null,null,null,null,null,null,null,null,null,null,null,null,null,null,null,null,null,null,null,null,null,null,null,null,null,null,null,null,null,null,null,null,183]
[null,null,null,null,null,null,null,null,null,null,null,null,null,null,null,null,null,null,null,null,null,null,null,null,null,null,null,null,null,null,null,null,null,null,null,null,null,null,null,null,null,null,null,null,null,null,null,null,184]
[null,null,null,null,null,null,null,null,null,null,null,null,null,null,null,null,null,null,null,null,null,null,null,null,null,null,null,null,null,null,null,null,null,null,null,null,null,null,null,null,null,null,null,null,null,null,null,null,185]
[null,null,null,null,null,null,null,null,null,null,null,null,null,null,null,null,null,null,null,null,null,null,null,null,null,null,null,null,null,null,null,null,null,null,null,null,null,null,null,null,null,null,null,null,null,null,null,null,186]
[null,null,null,null,null,null,null,null,null,null,null,null,null,null,null,null,null,null,null,null,null,null,null,null,null,null,null,null,null,null,null,null,null,null,null,null,null,null,null,null,null,null,null,null,null,null,null,null,187]
[null,null,null,null,null,null,null,null,null,null,null,null,null,null,null,null,null,null,null,null,null,null,null,null,null,null,null,null,null,null,null,null,null,null,null,null,null,null,null,null,null,null,null,null,null,null,null,null,188]
[null,null,null,null,null,null,null,null,null,null,null,null,null,null,null,null,null,null,null,null,null,null,null,null,null,null,null,null,null,null,null,null,null,null,null,null,null,null,null,null,null,null,null,null,null,null,null,null,189]
[null,null,null,null,null,null,null,null,null,null,null,null,null,null,null,null,null,null,null,null,null,null,null,null,null,null,null,null,null,null,null,null,null,null,null,null,null,null,null,null,null,null,null,null,null,null,null,null,190]
[null,null,null,null,null,null,null,null,null,null,null,null,null,null,null,null,null,null,null,null,null,null,null,null,null,null,null,null,null,null,null,null,null,null,null,null,null,null,null,null,null,null,null,null,null,null,null,null,191]
[null,null,null,null,null,null,null,null,null,null,null,null,null,null,null,null,null,null,null,null,null,null,null,null,null,null,null,null,null,null,null,null,null,null,null,null,null,null,null,null,null,null,null,null,null,null,null,null,192]
[null,null,null,null,null,null,null,null,null,null,null,null,null,null,null,null,null,null,null,null,null,null,null,null,null,null,null,null,null,null,null,null,null,null,null,null,null,null,null,null,null,null,null,null,null,null,null,null,193]
[null,null,null,null,null,null,null,null,null,null,null,null,null,null,null,null,null,null,null,null,null,null,null,null,null,null,null,null,null,null,null,null,null,null,null,null,null,null,null,null,null,null,null,null,null,null,null,null,194]
[null,null,null,null,null,null,null,null,null,null,null,null,null,null,null,null,null,null,null,null,null,null,null,null,null,null,null,null,null,null,null,null,null,null,null,null,null,null,null,null,null,null,null,null,null,null,null,null,195]
[null,null,null,null,null,null,null,null,null,null,null,null,null,null,null,null,null,null,null,null,null,null,null,null,null,null,null,null,null,null,null,null,null,null,null,null,null,null,null,null,null,null,null,null,null,null,null,null,196]
[null,null,null,null,null,null,null,null,null,null,null,null,null,null,null,null,null,null,null,null,null,null,null,null,null,null,null,null,null,null,null,null,null,null,null,null,null,null,null,null,null,null,null,null,null,null,null,null,197]
[null,null,null,null,null,null,null,null,null,null,null,null,null,null,null,null,null,null,null,null,null,null,null,null,null,null,null,null,null,null,null,null,null,null,null,null,null,null,null,null,null,null,null,null,null,null,null,null,198]
[null,null,null,null,null,null,null,null,null,null,null,null,null,null,null,null,null,null,null,null,null,null,null,null,null,null,null,null,null,null,null,null,null,null,null,null,null,null,null,null,null,null,null,null,null,null,null,null,199]
[null,null,null,null,null,null,null,null,null,null,null,null,null,null,null,null,null,null,null,null,null,null,null,null,null,null,null,null,null,null,null,null,null,null,null,null,null,null,null,null,null,null,null,null,null,null,null,null,200]
[null,null,null,null,null,null,null,null,null,null,null,null,null,null,null,null,null,null,null,null,null,null,null,null,null,null,null,null,null,null,null,null,null,null,null,null,null,null,null,null,null,null,null,null,null,null,null,null,201]
[null,null,null,null,null,null,null,null,null,null,null,null,null,null,null,null,null,null,null,null,null,null,null,null,null,null,null,null,null,null,null,null,null,null,null,null,null,null,null,null,null,null,null,null,null,null,null,null,202]
[null,null,null,null,null,null,null,null,null,null,null,null,null,null,null,null,null,null,null,null,null,null,null,null,null,null,null,null,null,null,null,null,null,null,null,null,null,null,null,null,null,null,null,null,null,null,null,null,203]
[null,null,null,null,null,null,null,null,null,null,null,null,null,null,null,null,null,null,null,null,null,null,null,null,null,null,null,null,null,null,null,null,null,null,null,null,null,null,null,null,null,null,null,null,null,null,null,null,204]
[null,null,null,null,null,null,null,null,null,null,null,null,null,null,null,null,null,null,null,null,null,null,null,null,null,null,null,null,null,null,null,null,null,null,null,null,null,null,null,null,null,null,null,null,null,null,null,null,205]
[null,null,null,null,null,null,null,null,null,null,null,null,null,null,null,null,null,null,null,null,null,null,null,null,null,null,null,null,null,null,null,null,null,null,null,null,null,null,null,null,null,null,null,null,null,null,null,null,206]
[null,null,null,null,null,null,null,null,null,null,null,null,null,null,null,null,null,null,null,null,null,null,null,null,null,null,null,null,null,null,null,null,null,null,null,null,null,null,null,null,null,null,null,null,null,null,null,null,207]
[null,null,null,null,null,null,null,null,null,null,null,null,null,null,null,null,null,null,null,null,null,null,null,null,null,null,null,null,null,null,null,null,null,null,null,null,null,null,null,null,null,null,null,null,null,null,null,null,208]
[null,null,null,null,null,null,null,null,null,null,null,null,null,null,null,null,null,null,null,null,null,null,null,null,null,null,null,null,null,null,null,null,null,null,null,null,null,null,null,null,null,null,null,null,null,null,null,null,209]
[null,null,null,null,null,null,null,null,null,null,null,null,null,null,null,null,null,null,null,null,null,null,null,null,null,null,null,null,null,null,null,null,null,null,null,null,null,null,null,null,null,null,null,null,null,null,null,null,210]
[null,null,null,null,null,null,null,null,null,null,null,null,null,null,null,null,null,null,null,null,null,null,null,null,null,null,null,null,null,null,null,null,null,null,null,null,null,null,null,null,null,null,null,null,null,null,null,null,211]
[null,null,null,null,null,null,null,null,null,null,null,null,null,null,null,null,null,null,null,null,null,null,null,null,null,null,null,null,null,null,null,null,null,null,null,null,null,null,null,null,null,null,null,null,null,null,null,null,212]
[null,null,null,null,null,null,null,null,null,null,null,null,null,null,null,null,null,null,null,null,null,null,null,null,null,null,null,null,null,null,null,null,null,null,null,null,null,null,null,null,null,null,null,null,null,null,null,null,213]
[null,null,null,null,null,null,null,null,null,null,null,null,null,null,null,null,null,null,null,null,null,null,null,null,null,null,null,null,null,null,null,null,null,null,null,null,null,null,null,null,null,null,null,null,null,null,null,null,214]
[null,null,null,null,null,null,null,null,null,null,null,null,null,null,null,null,null,null,null,null,null,null,null,null,null,null,null,null,null,null,null,null,null,null,null,null,null,null,null,null,null,null,null,null,null,null,null,null,215]
[null,null,null,null,null,null,null,null,null,null,null,null,null,null,null,null,null,null,null,null,null,null,null,null,null,null,null,null,null,null,null,null,null,null,null,null,null,null,null,null,null,null,null,null,null,null,null,null,216]
[null,null,null,null,null,null,null,null,null,null,null,null,null,null,null,null,null,null,null,null,null,null,null,null,null,null,null,null,null,null,null,null,null,null,null,null,null,null,null,null,null,null,null,null,null,null,null,null,217]
[null,null,null,null,null,null,null,null,null,null,null,null,null,null,null,null,null,null,null,null,null,null,null,null,null,null,null,null,null,null,null,null,null,null,null,null,null,null,null,null,null,null,null,null,null,null,null,null,218]
[null,null,null,null,null,null,null,null,null,null,null,null,null,null,null,null,null,null,null,null,null,null,null,null,null,null,null,null,null,null,null,null,null,null,null,null,null,null,null,null,null,null,null,null,null,null,null,null,219]
[null,null,null,null,null,null,null,null,null,null,null,null,null,null,null,null,null,null,null,null,null,null,null,null,null,null,null,null,null,null,null,null,null,null,null,null,null,null,null,null,null,null,null,null,null,null,null,null,220]
[null,null,null,null,null,null,null,null,null,null,null,null,null,null,null,null,null,null,null,null,null,null,null,null,null,null,null,null,null,null,null,null,null,null,null,null,null,null,null,null,null,null,null,null,null,null,null,null,221]
[null,null,null,null,null,null,null,null,null,null,null,null,null,null,null,null,null,null,null,null,null,null,null,null,null,null,null,null,null,null,null,null,null,null,null,null,null,null,null,null,null,null,null,null,null,null,null,null,222]
[null,null,null,null,null,null,null,null,null,null,null,null,null,null,null,null,null,null,null,null,null,null,null,null,null,null,null,null,null,null,null,null,null,null,null,null,null,null,null,null,null,null,null,null,null,null,null,null,223]
[null,null,null,null,null,null,null,null,null,null,null,null,null,null,null,null,null,null,null,null,null,null,null,null,null,null,null,null,null,null,null,null,null,null,null,null,null,null,null,null,null,null,null,null,null,null,null,null,224]
[null,null,null,null,null,null,null,null,null,null,null,null,null,null,null,null,null,null,null,null,null,null,null,null,null,null,null,null,null,null,null,null,null,null,null,null,null,null,null,null,null,null,null,null,null,null,null,null,225]
[null,null,null,null,null,null,null,null,null,null,null,null,null,null,null,null,null,null,null,null,null,null,null,null,null,null,null,null,null,null,null,null,null,null,null,null,null,null,null,null,null,null,null,null,null,null,null,null,226]
[null,null,null,null,null,null,null,null,null,null,null,null,null,null,null,null,null,null,null,null,null,null,null,null,null,null,null,null,null,null,null,null,null,null,null,null,null,null,null,null,null,null,null,null,null,null,null,null,227]
[null,null,null,null,null,null,null,null,null,null,null,null,null,null,null,null,null,null,null,null,null,null,null,null,null,null,null,null,null,null,null,null,null,null,null,null,null,null,null,null,null,null,null,null,null,null,null,null,228]
[null,null,null,null,null,null,null,null,null,null,null,null,null,null,null,null,null,null,null,null,null,null,null,null,null,null,null,null,null,null,null,null,null,null,null,null,null,null,null,null,null,null,null,null,null,null,null,null,229]
[null,null,null,null,null,null,null,null,null,null,null,null,null,null,null,null,null,null,null,null,null,null,null,null,null,null,null,null,null,null,null,null,null,null,null,null,null,null,null,null,null,null,null,null,null,null,null,null,230]
[null,null,null,null,null,null,null,null,null,null,null,null,null,null,null,null,null,null,null,null,null,null,null,null,null,null,null,null,null,null,null,null,null,null,null,null,null,null,null,null,null,null,null,null,null,null,null,null,231]
[null,null,null,null,null,null,null,null,null,null,null,null,null,null,null,null,null,null,null,null,null,null,null,null,null,null,null,null,null,null,null,null,null,null,null,null,null,null,null,null,null,null,null,null,null,null,null,null,232]
[null,null,null,null,null,null,null,null,null,null,null,null,null,null,null,null,null,null,null,null,null,null,null,null,null,null,null,null,null,null,null,null,null,null,null,null,null,null,null,null,null,null,null,null,null,null,null,null,233]
[null,null,null,null,null,null,null,null,null,null,null,null,null,null,null,null,null,null,null,null,null,null,null,null,null,null,null,null,null,null,null,null,null,null,null,null,null,null,null,null,null,null,null,null,null,null,null,null,234]
[null,null,null,null,null,null,null,null,null,null,null,null,null,null,null,null,null,null,null,null,null,null,null,null,null,null,null,null,null,null,null,null,null,null,null,null,null,null,null,null,null,null,null,null,null,null,null,null,235]
[null,null,null,null,null,null,null,null,null,null,null,null,null,null,null,null,null,null,null,null,null,null,null,null,null,null,null,null,null,null,null,null,null,null,null,null,null,null,null,null,null,null,null,null,null,null,null,null,236]
[null,null,null,null,null,null,null,null,null,null,null,null,null,null,null,null,null,null,null,null,null,null,null,null,null,null,null,null,null,null,null,null,null,null,null,null,null,null,null,null,null,null,null,null,null,null,null,null,237]
[null,null,null,null,null,null,null,null,null,null,null,null,null,null,null,null,null,null,null,null,null,null,null,null,null,null,null,null,null,null,null,null,null,null,null,null,null,null,null,null,null,null,null,null,null,null,null,null,238]
[null,null,null,null,null,null,null,null,null,null,null,null,null,null,null,null,null,null,null,null,null,null,null,null,null,null,null,null,null,null,null,null,null,null,null,null,null,null,null,null,null,null,null,null,null,null,null,null,239]
[null,null,null,null,null,null,null,null,null,null,null,null,null,null,null,null,null,null,null,null,null,null,null,null,null,null,null,null,null,null,null,null,null,null,null,null,null,null,null,null,null,null,null,null,null,null,null,null,240]
[null,null,null,null,null,null,null,null,null,null,null,null,null,null,null,null,null,null,null,null,null,null,null,null,null,null,null,null,null,null,null,null,null,null,null,null,null,null,null,null,null,null,null,null,null,null,null,null,241]
[null,null,null,null,null,null,null,null,null,null,null,null,null,null,null,null,null,null,null,null,null,null,null,null,null,null,null,null,null,null,null,null,null,null,null,null,null,null,null,null,null,null,null,null,null,null,null,null,242]
[null,null,null,null,null,null,null,null,null,null,null,null,null,null,null,null,null,null,null,null,null,null,null,null,null,null,null,null,null,null,null,null,null,null,null,null,null,null,null,null,null,null,null,null,null,null,null,null,243]
[null,null,null,null,null,null,null,null,null,null,null,null,null,null,null,null,null,null,null,null,null,null,null,null,null,null,null,null,null,null,null,null,null,null,null,null,null,null,null,null,null,null,null,null,null,null,null,null,244]
[null,null,null,null,null,null,null,null,null,null,null,null,null,null,null,null,null,null,null,null,null,null,null,null,null,null,null,null,null,null,null,null,null,null,null,null,null,null,null,null,null,null,null,null,null,null,null,null,245]
[null,null,null,null,null,null,null,null,null,null,null,null,null,null,null,null,null,null,null,null,null,null,null,null,null,null,null,null,null,null,null,null,null,null,null,null,null,null,null,null,null,null,null,null,null,null,null,null,246]
[null,null,null,null,null,null,null,null,null,null,null,null,null,null,null,null,null,null,null,null,null,null,null,null,null,null,null,null,null,null,null,null,null,null,null,null,null,null,null,null,null,null,null,null,null,null,null,null,247]
[null,null,null,null,null,null,null,null,null,null,null,null,null,null,null,null,null,null,null,null,null,null,null,null,null,null,null,null,null,null,null,null,null,null,null,null,null,null,null,null,null,null,null,null,null,null,null,null,248]
[null,null,null,null,null,null,null,null,null,null,null,null,null,null,null,null,null,null,null,null,null,null,null,null,null,null,null,null,null,null,null,null,null,null,null,null,null,null,null,null,null,null,null,null,null,null,null,null,249]
[null,null,null,null,null,null,null,null,null,null,null,null,null,null,null,null,null,null,null,null,null,null,null,null,null,null,null,null,null,null,null,null,null,null,null,null,null,null,null,null,null,null,null,null,null,null,null,null,250]
[null,null,null,null,null,null,null,null,null,null,null,null,null,null,null,null,null,null,null,null,null,null,null,null,null,null,null,null,null,null,null,null,null,null,null,null,null,null,null,null,null,null,null,null,null,null,null,null,251]
[null,null,null,null,null,null,null,null,null,null,null,null,null,null,null,null,null,null,null,null,null,null,null,null,null,null,null,null,null,null,null,null,null,null,null,null,null,null,null,null,null,null,null,null,null,null,null,null,252]
[null,null,null,null,null,null,null,null,null,null,null,null,null,null,null,null,null,null,null,null,null,null,null,null,null,null,null,null,null,null,null,null,null,null,null,null,null,null,null,null,null,null,null,null,null,null,null,null,253]
[null,null,null,null,null,null,null,null,null,null,null,null,null,null,null,null,null,null,null,null,null,null,null,null,null,null,null,null,null,null,null,null,null,null,null,null,null,null,null,null,null,null,null,null,null,null,null,null,254]
[null,null,null,null,null,null,null,null,null,null,null,null,null,null,null,null,null,null,null,null,null,null,null,null,null,null,null,null,null,null,null,null,null,null,null,null,null,null,null,null,null,null,null,null,null,null,null,null,255]
[null,null,null,null,null,null,null,null,null,null,null,null,null,null,null,null,null,null,null,null,null,null,null,null,null,null,null,null,null,null,null,null,null,null,null,null,null,null,null,null,null,null,null,null,null,null,null,null,256]
[null,null,null,null,null,null,null,null,null,null,null,null,null,null,null,null,null,null,null,null,null,null,null,null,null,null,null,null,null,null,null,null,null,null,null,null,null,null,null,null,null,null,null,null,null,null,null,null,257]
[null,null,null,null,null,null,null,null,null,null,null,null,null,null,null,null,null,null,null,null,null,null,null,null,null,null,null,null,null,null,null,null,null,null,null,null,null,null,null,null,null,null,null,null,null,null,null,null,258]
[null,null,null,null,null,null,null,null,null,null,null,null,null,null,null,null,null,null,null,null,null,null,null,null,null,null,null,null,null,null,null,null,null,null,null,null,null,null,null,null,null,null,null,null,null,null,null,null,259]
[null,null,null,null,null,null,null,null,null,null,null,null,null,null,null,null,null,null,null,null,null,null,null,null,null,null,null,null,null,null,null,null,null,null,null,null,null,null,null,null,null,null,null,null,null,null,null,null,260]
[null,null,null,null,null,null,null,null,null,null,null,null,null,null,null,null,null,null,null,null,null,null,null,null,null,null,null,null,null,null,null,null,null,null,null,null,null,null,null,null,null,null,null,null,null,null,null,null,261]
[null,null,null,null,null,null,null,null,null,null,null,null,null,null,null,null,null,null,null,null,null,null,null,null,null,null,null,null,null,null,null,null,null,null,null,null,null,null,null,null,null,null,null,null,null,null,null,null,262]
[null,null,null,null,null,null,null,null,null,null,null,null,null,null,null,null,null,null,null,null,null,null,null,null,null,null,null,null,null,null,null,null,null,null,null,null,null,null,null,null,null,null,null,null,null,null,null,null,263]
[null,null,null,null,null,null,null,null,null,null,null,null,null,null,null,null,null,null,null,null,null,null,null,null,null,null,null,null,null,null,null,null,null,null,null,null,null,null,null,null,null,null,null,null,null,null,null,null,264]
[null,null,null,null,null,null,null,null,null,null,null,null,null,null,null,null,null,null,null,null,null,null,null,null,null,null,null,null,null,null,null,null,null,null,null,null,null,null,null,null,null,null,null,null,null,null,null,null,265]
[null,null,null,null,null,null,null,null,null,null,null,null,null,null,null,null,null,null,null,null,null,null,null,null,null,null,null,null,null,null,null,null,null,null,null,null,null,null,null,null,null,null,null,null,null,null,null,null,266]
[null,null,null,null,null,null,null,null,null,null,null,null,null,null,null,null,null,null,null,null,null,null,null,null,null,null,null,null,null,null,null,null,null,null,null,null,null,null,null,null,null,null,null,null,null,null,null,null,267]
[null,null,null,null,null,null,null,null,null,null,null,null,null,null,null,null,null,null,null,null,null,null,null,null,null,null,null,null,null,null,null,null,null,null,null,null,null,null,null,null,null,null,null,null,null,null,null,null,268]
[null,null,null,null,null,null,null,null,null,null,null,null,null,null,null,null,null,null,null,null,null,null,null,null,null,null,null,null,null,null,null,null,null,null,null,null,null,null,null,null,null,null,null,null,null,null,null,null,269]
[null,null,null,null,null,null,null,null,null,null,null,null,null,null,null,null,null,null,null,null,null,null,null,null,null,null,null,null,null,null,null,null,null,null,null,null,null,null,null,null,null,null,null,null,null,null,null,null,270]
[null,null,null,null,null,null,null,null,null,null,null,null,null,null,null,null,null,null,null,null,null,null,null,null,null,null,null,null,null,null,null,null,null,null,null,null,null,null,null,null,null,null,null,null,null,null,null,null,271]
[null,null,null,null,null,null,null,null,null,null,null,null,null,null,null,null,null,null,null,null,null,null,null,null,null,null,null,null,null,null,null,null,null,null,null,null,null,null,null,null,null,null,null,null,null,null,null,null,272]
[null,null,null,null,null,null,null,null,null,null,null,null,null,null,null,null,null,null,null,null,null,null,null,null,null,null,null,null,null,null,null,null,null,null,null,null,null,null,null,null,null,null,null,null,null,null,null,null,273]
[null,null,null,null,null,null,null,null,null,null,null,null,null,null,null,null,null,null,null,null,null,null,null,null,null,null,null,null,null,null,null,null,null,null,null,null,null,null,null,null,null,null,null,null,null,null,null,null,274]
[null,null,null,null,null,null,null,null,null,null,null,null,null,null,null,null,null,null,null,null,null,null,null,null,null,null,null,null,null,null,null,null,null,null,null,null,null,null,null,null,null,null,null,null,null,null,null,null,275]
[null,null,null,null,null,null,null,null,null,null,null,null,null,null,null,null,null,null,null,null,null,null,null,null,null,null,null,null,null,null,null,null,null,null,null,null,null,null,null,null,null,null,null,null,null,null,null,null,276]
[null,null,null,null,null,null,null,null,null,null,null,null,null,null,null,null,null,null,null,null,null,null,null,null,null,null,null,null,null,null,null,null,null,null,null,null,null,null,null,null,null,null,null,null,null,null,null,null,277]
[null,null,null,null,null,null,null,null,null,null,null,null,null,null,null,null,null,null,null,null,null,null,null,null,null,null,null,null,null,null,null,null,null,null,null,null,null,null,null,null,null,null,null,null,null,null,null,null,278]
[null,null,null,null,null,null,null,null,null,null,null,null,null,null,null,null,null,null,null,null,null,null,null,null,null,null,null,null,null,null,null,null,null,null,null,null,null,null,null,null,null,null,null,null,null,null,null,null,279]
[null,null,null,null,null,null,null,null,null,null,null,null,null,null,null,null,null,null,null,null,null,null,null,null,null,null,null,null,null,null,null,null,null,null,null,null,null,null,null,null,null,null,null,null,null,null,null,null,280]
[null,null,null,null,null,null,null,null,null,null,null,null,null,null,null,null,null,null,null,null,null,null,null,null,null,null,null,null,null,null,null,null,null,null,null,null,null,null,null,null,null,null,null,null,null,null,null,null,281]
[null,null,null,null,null,null,null,null,null,null,null,null,null,null,null,null,null,null,null,null,null,null,null,null,null,null,null,null,null,null,null,null,null,null,null,null,null,null,null,null,null,null,null,null,null,null,null,null,282]
[null,null,null,null,null,null,null,null,null,null,null,null,null,null,null,null,null,null,null,null,null,null,null,null,null,null,null,null,null,null,null,null,null,null,null,null,null,null,null,null,null,null,null,null,null,null,null,null,283]
[null,null,null,null,null,null,null,null,null,null,null,null,null,null,null,null,null,null,null,null,null,null,null,null,null,null,null,null,null,null,null,null,null,null,null,null,null,null,null,null,null,null,null,null,null,null,null,null,284]
[null,null,null,null,null,null,null,null,null,null,null,null,null,null,null,null,null,null,null,null,null,null,null,null,null,null,null,null,null,null,null,null,null,null,null,null,null,null,null,null,null,null,null,null,null,null,null,null,285]
[null,null,null,null,null,null,null,null,null,null,null,null,null,null,null,null,null,null,null,null,null,null,null,null,null,null,null,null,null,null,null,null,null,null,null,null,null,null,null,null,null,null,null,null,null,null,null,null,286]
[null,null,null,null,null,null,null,null,null,null,null,null,null,null,null,null,null,null,null,null,null,null,null,null,null,null,null,null,null,null,null,null,null,null,null,null,null,null,null,null,null,null,null,null,null,null,null,null,287]
[null,null,null,null,null,null,null,null,null,null,null,null,null,null,null,null,null,null,null,null,null,null,null,null,null,null,null,null,null,null,null,null,null,null,null,null,null,null,null,null,null,null,null,null,null,null,null,null,288]
[null,null,null,null,null,null,null,null,null,null,null,null,null,null,null,null,null,null,null,null,null,null,null,null,null,null,null,null,null,null,null,null,null,null,null,null,null,null,null,null,null,null,null,null,null,null,null,null,289]
[null,null,null,null,null,null,null,null,null,null,null,null,null,null,null,null,null,null,null,null,null,null,null,null,null,null,null,null,null,null,null,null,null,null,null,null,null,null,null,null,null,null,null,null,null,null,null,null,290]
[null,null,null,null,null,null,null,null,null,null,null,null,null,null,null,null,null,null,null,null,null,null,null,null,null,null,null,null,null,null,null,null,null,null,null,null,null,null,null,null,null,null,null,null,null,null,null,null,291]
[null,null,null,null,null,null,null,null,null,null,null,null,null,null,null,null,null,null,null,null,null,null,null,null,null,null,null,null,null,null,null,null,null,null,null,null,null,null,null,null,null,null,null,null,null,null,null,null,292]
[null,null,null,null,null,null,null,null,null,null,null,null,null,null,null,null,null,null,null,null,null,null,null,null,null,null,null,null,null,null,null,null,null,null,null,null,null,null,null,null,null,null,null,null,null,null,null,null,293]
[null,null,null,null,null,null,null,null,null,null,null,null,null,null,null,null,null,null,null,null,null,null,null,null,null,null,null,null,null,null,null,null,null,null,null,null,null,null,null,null,null,null,null,null,null,null,null,null,294]
[null,null,null,null,null,null,null,null,null,null,null,null,null,null,null,null,null,null,null,null,null,null,null,null,null,null,null,null,null,null,null,null,null,null,null,null,null,null,null,null,null,null,null,null,null,null,null,null,295]
[null,null,null,null,null,null,null,null,null,null,null,null,null,null,null,null,null,null,null,null,null,null,null,null,null,null,null,null,null,null,null,null,null,null,null,null,null,null,null,null,null,null,null,null,null,null,null,null,296]
[null,null,null,null,null,null,null,null,null,null,null,null,null,null,null,null,null,null,null,null,null,null,null,null,null,null,null,null,null,null,null,null,null,null,null,null,null,null,null,null,null,null,null,null,null,null,null,null,297]
[null,null,null,null,null,null,null,null,null,null,null,null,null,null,null,null,null,null,null,null,null,null,null,null,null,null,null,null,null,null,null,null,null,null,null,null,null,null,null,null,null,null,null,null,null,null,null,null,298]
[null,null,null,null,null,null,null,null,null,null,null,null,null,null,null,null,null,null,null,null,null,null,null,null,null,null,null,null,null,null,null,null,null,null,null,null,null,null,null,null,null,null,null,null,null,null,null,null,299]
[null,null,null,null,null,null,null,null,null,null,null,null,null,null,null,null,null,null,null,null,null,null,null,null,null,null,null,null,null,null,null,null,null,null,null,null,null,null,null,null,null,null,null,null,null,null,null,null,300]

{"sheet":"Puntos Fijos de donación","index":1,"n_rows":24,"n_cols":8,"rows_kept":24,"cut":false,"hidden":false,"merged":[]}
[]
[]
[null,"A DIARIO podemos donar sangre en Puntos Fijos de Donación:",null,null,null,null,null,"Horarios"]
[null,"- FOTOS del Centro Regional de Transfusión Sanguínea – Hospital de Jerez de la Frontera."]
[]
[null,null,null,null,null,null,null,"- C.R.T.S. (Centro Regional de Transfusión Sanguínea"]
[null,null,null,null,null,null,null,"- Hospital de Jerez de la Frontera."]
[]
[null,null,null,null,null,null,null,"Lunes, Miércoles y Viernes de 9:00 a 15:00 horas."]
[null,null,null,null,null,null,null,"Martes y Jueves de 9:00 a 21:00 horas ininterrumpidamente."]
[]
[]
[]
[]
[]
[]
[null,"- FOTOS del Punto fijo de donación – Hospital Puerta del Mar de Cádiz.",null,null,null,null,null,"Recordar que..... DONAR NO DUELE Y SALVA VIDAS."]
[null,null,null,null,null,null,null,"SIEMPRE NECESITAMOS DONACIONES Y NUEVOS DONANTES"]
[]
[null,null,null,null,null,null,null,"- Punto fijo de donación "]
[null,null,null,null,null,null,null,"- Hospital Puerta del Mar de Cádiz."]
[]
[null,null,null,null,null,null,null,"Lunes, Miércoles y Viernes de 9:00 a 21:00 horas ininterrumpidamente."]
[null,null,null,null,null,null,null,"Martes y Jueves de 9:00 a 15:00 horas."]

{"sheet":"Puntos Móviles Provinciales","index":2,"n_rows":140,"n_cols":3,"rows_kept":140,"cut":false,"hidden":false,"merged":[]}
[]
[null,"Para saber cuando estará en tu población, y la hora de la colecta, puedes consultar nuestra:"]
[null,"WEB:","http://www.donantesdesangrejerez.org/"]
[null,"FACEBOOK:","https://www.facebook.com/donantesdesangre.jerezdelafrontera/"]
[null,"TWITTER:","https://twitter.com/DonanteSangreJe"]
[null,"EMAIL:","info@donantesdesangrejerez.org"]
[null," ","asociaciondonantedesangrejerez@gmail.com"]
[null,"SERVICIO ANDALUZ DE SALUD:","http://www.juntadeandalucia.es/servicioandaluzdesalud/centros/Detalle.asp?idcentro=16502"]
[null,{"$f":"'Cuando puedo DONAR'!T33","v":"0 DÍAS"},{"$f":"'Cuando puedo DONAR'!B33","v":"YA PUEDE VOLVER A DONAR SANGRE"}]
[null,{"$f":"'Cuando puedo DONAR'!T35","v":"0 DÍAS"},{"$f":"'Cuando puedo DONAR'!B35","v":"YA PUEDE VOLVER A DONAR PLASMA"}]
[null,"POBLACIONES","Lugares habituales de Donación"]
[null,"Alcalá de los Gazules","Consultorio Médico. Paseo de la Playa, s/n."]
[null,"Alcalá del Valle","Centro de Salud. Avda. de la Libertad, s/n."]
[null,"Algar","Consultorio Médico. C/ Dr. Pérez Zabra, s/n."]
[null,"Algeciras","Autobús de Donación en el recinto ferial. Rotonda del Pandero."]
[null,null,"Bda. Plaza Alta. Parroquia Ntra. Sra. de la Palma. C/ Ventura Morón."]
[null,null,"Bda. Saladillo. Centro de Salud Saladillo. C/ Sto. Domingo de Guzmán."]
[null,null,"Bda. San García. Parroquia San García Abad. Avda. 28 de Febrero, 2-A."]
[null,null,"Bda. San José Artesano. A.VV. Bahía del Mar. Avda. de España, 1 - local 24"]
[null,"Algodonales","Consultorio Médico. C/ Setenil de las Bodegas, s/n"]
[null,"Arcos de la Frontera","Casa Hermandad de El Rocío. C/ Picasso, s/n"]
[null,null,"Casa de la Juventud. C/ Picasso, s/n."]
[null,null,"Centro de Salud Barrio Bajo. C/ Calvario, s/n."]
[null,null,"Centro Día San Miguel. C/Grupo Poético Alcaraván, 3."]
[null,null,"Consultorio Médico El Pósito. C/ Corredera, 36."]
[null,null,"El Santiscal. Centro Privado Santiscal. Avd. Santiscal, 709 (2ª roton)"]
[null,"Barbate","Centro Mayores, La Casa del Mar. Avda. del Mar"]
[null,null,"Junta Local de AECC. Lateral del edificio del Juzgado, C/Janda"]
[null,null,"Edificio Lonja Vieja. Av. Cabo Diego Pérez Rodríguez"]
[null,"Benalup","Centro de Salud. C/ Almería, 4."]
[null,"Benamahoma","Dependencias Municipales. C/ Real, 38."]
[null,"Bornos","Centro de la 3ª Edad. Castillo Palacio de los Ribera. Entrada por Plaza del Ayuntamiento."]
[null,"Cádiz","Bda. La Laguna. A.VV. Manuel de Falla. Avda. Juan Carlos I, esquina con C/ Velázquez."]
[null,null,"Casa de la Juventud. C/ Cánovas del Castillo, 41."]
[null,null,"Centro Integral de la Mujer. Plaza El Palillero."]
[null,null,"Hospital Universtario. Puerta del Mar. Salón de Actos"]
[null,null,"Hotel Playa Victoria - Sala de reuniones. Glorieta Ingeniero La Cierva, 4"]
[null,null,"Estadio Ramón de Carranza, Acceso junto a taquillas de Tribuna."]
[null,null,"El Corte Inglés. Servicio Médico. Avd. de las Cortes de Cádiz, 1. (Solo donación para personal de la empresa)."]
[null,"Castellar de la Frontera","Consultorio Médico. Plaza Andalucía, s/n."]
[null,"Ceuta","Ayuntamiento. Antesala del Salón de Actos."]
[null,"Chiclana de la Frontera","Autobús de Donación en Plaza de las Bodegas (junto mercado de abastos)."]
[null,null,"Iglesia de Jesucristo de los Santos U.D. Avda. Juan Carlos I. 6. Huerta del Rosario."]
[null,"Chipiona","Centro de Salud. Avda. de Rocío Jurado, s/n."]
[null,null,"Playa de Regla. Autobús de Donación junto al monumento a la Luz."]
[null,null,"Playa de Regla. Autobús de Donación junto al Santuario de la Virgen de Regla"]
[null,"Conil de la Frontera","Asamblea de Cruz Roja. C/ Reyes Católicos esquina C/ Pozuelo"]
[null,null,"Centro de Salud. C/ Rosa de los Vientos, s/n"]
[null,"Coto de Bornos","Autobús de Donación en la Plaza de la Iglesia."]
[null,null,"Biblioteca. Dependencias Municipales."]
[null,"El Bosque","Centro de Salud. Avda. de la Diputación, s/n"]
[null,"El Gastor","Biblioteca Municipal. C/ Alta, 1."]
[null,"El Puerto de Santa María","Bda. Barrio Obrero. Centro de Salud Pinillo Chico. Plaza Tula Ruiz Golluri, s/n."]
[null,null,"Bda. Crevillet. A.VV. La Gobernaora. Plaza Paco Teja s/n"]
[null,null,"Bda. Ronda Victoria. A.VV. Ronda de la Victoria. C/ Nardo, 1."]
[null,null,"Casa Hdad. de El Rocío. C/ Los Moros, 15."]
[null,null,"Capilla Sagrado Corazón de Jesús. C/Los Toreros, 1 (junto Super Sol)"]
[null,null,"Complejo Parroquial La Palma. C/Almirante Cañas Trujillo, 1."]
[null,null,"I.E.S. Mar de Cádiz. Avda. Rafael Alberti, s/n."]
[null,null,"Salones Parroquiales de la Iglesia Mayor Prioral. C/ San Sebastián. (junto Capilla de la Aurora)."]
[null,"El Torno","Centro Cultural. Junto a la farmacia."]
[null,"Espera","Centro de Salud. C/ Dr. Fleming, s/n."]
[null,"Facinas","Ayuntamiento. C/ Tarifa, s/n."]
[null,"Grazalema","C.E.I.P. Antonio Machado. C/ Emigrantes Grazalemeños, s/n."]
[null,"Guadalcacín","Centro de Salud, C/ Féria, s/n."]
[null,null,"Consultorio Médico. Plaza de la Artesanía, 3."]
[null,"Jerez de la Frontera","Autobús de Donación en confluencia de C/ Porvera y Alameda Cristina."]
[null,null,"Bda. La Asunción. Autobús de Donación en C. Comercial \"La Asunción\""]
[null,null,"Bda. La Cartuja. A.VV. Azul y Blanca C/Fraternidad, s/n."]
[null,null,"Bda. La Granja. C.P.Antonio Nebrija. Avda.Fernando Portillo"]
[null,null,"Bda. La Milagrosa. A.VV. Los Zodiacos. C/Cáncer 3"]
[null,null,"Bda. Las Torres. Salón Parroquial Ntra. Sra. del Perpetuo Socorro. Avda. de la Soleá, 17."]
[null,null,"Bda. Parque Atlántico. Local de la A.VV. Atlántico. Plaza Arlés"]
[null,null,"Bda. Nueva Andalucía. A.VV. Manuel de Falla. C/ Mezquita, 20."]
[null,null,"Bda. Nuevo Chapín. Autobús Donación, Parque Iguazú"]
[null,null,"Bda. San Benito. Autobús de Donación, en Parking Merca 80. Avd.Cruz Roja"]
[null,null,"Bda. San Joaquín, A.VV. Mundo Nuevo, C/ Los Cedros, s/n."]
[null,null,"Bda. San José Obrero. Autobús de Donación en C/ Santa Antonia junto al parking público."]
[null,null,"Bda. Vallesequillo. Centro de Barrio. C/ Ferrocarril, s/n"]
[null,null,"C.F.P. Manuel L.Tamayo. A.Magna. Avd.San Juan Bosco,6 (Solo donación para alumnos y profesores)"]
[null,null,"Campus Universitario. Seminario Edificio Multiusos"]
[null,null,"Centro Docente Privado RUMASA. C/San Juan de Dios, 2-8. (Solo donación para alumnos y profesores)"]
[null,null,"Centro Social Blas Infante. Avda. Nazaret, s/n."]
[null,null,"Club Social Puerta del Sur. Avda. Puertas del Sur, 1."]
[null,null,"Viernes de Dolores. Día del Donante de Jerez. Edificio de Sindicatos. Plaza del Arenal, 22"]
[null,"Jédula","Consultorio Médico. Pza. San Isidro Labrador."]
[null,"Jimena de la Frontera","Centro de Salud. Avda de los Deportes, s/n."]
[null,"La Barca de la Florida","Centro Cultural. C/ Ancha, s/n."]
[null,"La Línea de la Concepción","C.P.D. Salesianos. San Juan Bosco. Entrada por Avd. María Auxiliadora"]
[null,null,"ASCTEG. Asociación de Trabajadores Españoles en Gibraltar. C/ Montserrat, 18"]
[null,null,"Casa de la Juventud. Paseo Andrés Viñas, s/n"]
[null,null,"Unión Deportiva Linense. Plaza Fariñas, s/n"]
[null,"Los Barrios","Centro de Salud. Avda. de Blasco Ibáñez, s/n."]
[null,null,"ACERINOX. Autobús de Donación, junto a las Oficinas Principales (Sólo para el personal de la empresa.)"]
[null,"Medina Sidonia","Centro Lúdico El Silo. Avda. de las Cortes, s/n."]
[null,"Nueva Jarilla","Consultorio Médico. C/ Real,9"]
[null,"Olvera","Centro de Salud. C/ Julián Besteiro, s/n."]
[null,null,"Asociaciación de Enfermos de Alzheimer. C/Subida a la Iglesia"]
[null,"Paterna de Rivera","Museo Etnográfico. Avda. Fernández Viagas, 14. "]
[null,"Prado del Rey","Centro de Salud. C/ Villamartín, s/n."]
[null,"Puerto Real","A.VV. Puerto Balbo. Bda. Ciudad Jardín. C/ Facinas, 3."]
[null,null,"Bda. Río San Pedro. Autobús de Donación en Avda. República de Argentina a espaldas del Club Náutico."]
[null,null,"Escuela Superior de Ingenieros - Vestíbulo principal"]
[null,null,"Facultad CASEM. Planta sótano,pasillo junto copistería"]
[null,null,"Facultad Ciencias. Autobús Donación frente Entrada Principal"]
[null,null,"Hospital Universitario. Vestíbulo de la entrada principal"]
[null,null,"I.E.S. La Jarcia. C/ Ribera del Muelle, s/n."]
[null,null,"NAVANTIA. Servicio Médico. (Donación sólo para el personal de la empresa)"]
[null,"Puerto Serrano","Biblioteca Municipal. Plaza de Andalucía, s/n."]
[null,"Rota","C.E.I.P. Maestro Eduardo Lobillo. C/ Neptuno, 4"]
[null,null,"Playa de la Costilla. Bús Donación en Avd. de Sevilla, 1."]
[null,null,"ZONA DE CARGA Y DESCARGA DE LA AVDA MARÍA AUXILIADORA CRUCE CON SAN FERNANDO."]
[null,null,"C.E.I.P. San José de Calasanz. C/ Inmaculada Concepción, 6."]
[null,"San Fernando","#NAVANTIA. Autobús de Donación junto al Aseo nº 6 (Donación sólo para el personal de la empresa)."]
[null,null,"Bda. Carlos III. Autobús de Donación junto al C.E.I.P. Ntra. Sra. del Carmen. C/ Felipe II"]
[null,null,"Bda. Nueva Isla. Autobús de Donación junto al I.E.S. La Bahía. Avda. de la Constitución, s/n."]
[null,null,"Centro de Reuniones de iglesia Mormones. C/ Almirante J.M. Pery Junquera esquina C/ Arquitecto Torcuato Cayón."]
[null,null,"I.E.S. Sancti Petri. C/ Polígono La Magdalena. s/n. (Solo donación para alumnos y profesores)"]
[null,null,"Salón Parroquial. Iglesia Divina Pastora. C/Marconi,7"]
[null,null,"Tercio de la Armada TEAR, en Club de Tropa (Solo donación para la dotación del cuartel)"]
[null,"San José del Valle","Consultorio Médico. Avda.de la Independencia, s/n."]
[null,"San Martín del Tesorillo","Parroquia S. Martín de Tous. Salón Parroquial. Plaza de la Constitución."]
[null,"San Roque","Bda. La Estación. Autobús de Donación en la Plaza Ortega Brú."]
[null,null,"CEPSA Gibraltar-San Roque. Refinería. Serv.Médico (Donación sólo para el personal de la empresa)"]
[null,null,"C.E.I.P. Carteia. C/ La Ermita, s/n. Bda. La Paz."]
[null,"Sanlúcar de Barrameda","Autobús Donación, Avd. Calzada Real, junto al mercado de abastos."]
[null,null,"Bda. Bonanza. Consultorio Médico. C/ Astilleros, s/n."]
[null,null,"Bda. La Dehesilla. Autobús de Donación junto al Consultorio Médico. Avda. de Madrid, s/n."]
[null,null,"Casa Hermandad de El Rocío. C/ San Jorge, 3."]
[null,"Tarifa","Asamblea de Cruz Roja. C/ Alcalde Juan Núñez."]
[null,null,"Autobús de donación en Avda. Andalucía en parada autobús urbano."]
[null,null,"Centro de Mayores Pta. del Retiro. C/ Calzadilla de Tellez, s/n. "]
[null,"Torrecera","Sala Multiusos. Junto al Consultorio Médico."]
[null,"Trebujena","I.E.S. José Cabrera. Biblioteca. Avda de Chipiona (Solo donación para alumnos y profesores)"]
[null,null,"I.E.S. José Cabrera. Salón planta sótano. Entrada por C/ Rafael Alberti"]
[null,"Ubrique","Edificio del Mercado y Juzgados. 3ª Planta. C/ El Cano"]
[null,"Vejer","Centro de Salud. Avda. de Andalucía, 8."]
[null,"Villamartín","Centro de Salud. Avda. de la Feria, s/n"]
[null,null,"I.E.S. Castillo de Matrera. Aula de Sanitaria. C/ Sevilla,16."]
[null,"Zahara de la Sierra","Consultorio Médico. C/ Ronda, 27."]

{"sheet":"Calendario","index":3,"n_rows":62,"n_cols":95,"rows_kept":62,"cut":false,"hidden":false,"merged":[[3,7,4,17],[4,21,4,23],[5,7,6,11],[5,12,6,15],[52,22,52,23],[7,10,7,14],[9,6,9,7],[6,37,6,43],[6,32,6,34],[59,6,59,8],[60,6,60,8],[61,6,61,8],[53,8,53,10],[53,16,53,18],[53,20,53,21],[6,27,6,29],[53,22,53,23],[14,27,14,28],[15,27,15,28],[14,58,14,59],[15,58,15,59],[18,7,18,8],[18,9,18,10],[52,15,52,16],[28,7,28,8],[28,9,28,10],[38,7,38,8],[38,9,38,10],[52,20,52,21],[29,93,29,95],[31,93,31,95],[29,89,29,91],[31,89,31,91],[17,91,17,96],[20,93,20,95],[22,93,22,95],[24,92,24,93]]}
[]
[]
[]
[null,null,null,null,null,null,null,"CALENDARIO"]
[null,null,null,null,null,null,null,null,null,null,null,null,null,null,null,null,null,null,null,null,null,null,null,null,null,null,null,null,{"$f":"IF(DATE(M6+1,1,1)-DATE(M6,1,1)=366,\"Bisiesto\")","v":false}]
[null,null,null,null,null,null,null,"AÑO",null,null,null,null,{"$f":"YEAR(TODAY())","v":2018}]
[null,null,null,null,null,null,null,null,null,null,null,null,null,null,null,null,null,null,null,null,null,null,null,null,null,null,{"$f":"HLOOKUP(M6,AA10:CG12,3,TRUE)","v":1},"Valor real en calendario",null,null,null,{"$f":"HLOOKUP(M6,AA10:AR14,4,TRUE)","v":28},"Año Bisiesto",null,null,null,{"$f":"IF(AC5=\"Bisiesto\",29,28)","v":28},"Para formato condicional del Año Bisiesto"]
[null,null,null,null,null,null,null,null,null,null,{"$f":"IF(AC5=\"Bisiesto\",\"Año Bisiesto\",\"\")","v":""}]
[]
[null,null,null,null,"ENERO",null,null,null,null,null,null,null,"FEBRERO",null,null,null,null,null,null,null,"MARZO",null,null,null,null,null,2003,2004,2005,2006,2007,2008,2009,2010,2011,2012,2013,2014,2015,2016,2017,2018,2019,2020,2021,2022,2023,2024,2025,2026,2027,2028,2029,2030,2031,2032,2033,2034,2035,2036,2037,2038,2039,2040,2041,2042,2043,2044,2045,2046,2047,2048,2049,2050,2051,2052,2053,2054,2055,2056,2057,2058,2059,2060,2061,null,null,null,null,"Leyenda:"]
[null,"L","M","M","J","V","S","D",null,"L","M","M","J","V","S","D",null,"L","M","M","J","V","S","D"]
[null,{"$f":"AA7","v":1},{"$f":"B12+1","v":2},3,4,5,6,7,{"$f":"IF($CQ$35=1,$CO$35,\"\")","v":""},{"$f":"IF(H12>=4,D16-33,IF(H12=3,1,IF(H12=2,0,IF(H12=1,-1))))","v":-2},{"$f":"J12+1","v":-1},0,1,2,3,4,{"$f":"IF($CQ$35=2,$CO$35,\"\")","v":""},{"$f":"IF(AK7=28,K16-29,IF(P16=29,1,K16-30))","v":-2},{"$f":"R12+1","v":-1},0,1,2,3,4,{"$f":"IF($V$61=3,$U$61,\"\")","v":29},null,-1,-2,-4,-5,1,0,-2,-3,-4,-5,0,-1,-2,-3,-5,1,0,-1,-3,-4,-5,1,-1,-2,-3,-4,1,0,-1,-2,-4,-5,1,0,-2,-3,-4,-5,0,-1,-2,-3,-5,1,0,-1,-3,-4,-5,1,-1,-2,-3,-4,1,0,-1,-2,-4,null,null,null,null,null,null," FIESTAS LOCALES"]
[null,{"$f":"H12+1","v":8},9,10,11,12,13,14,{"$f":"IF($CQ$36=1,$CO$36,\"\")","v":""},{"$f":"P12+1","v":5},6,7,8,9,10,11,{"$f":"IF($CQ$36=2,$CO$36,\"\")","v":""},{"$f":"X12+1","v":5},6,7,8,9,10,11,{"$f":"IF($V$62=3,$U$62,\"\")","v":30},null,28,29,28,28,28,29,28,28,28,29,28,28,28,29,28,28,28,29,28,28,28,29,28,28,28,29,28,28,28,29,28,28,28,29,28,28,28,29,28,28,28,29,28,28,28,29,28,28,28,29,28,28,28,29,28,28,28,29,28]
[null,{"$f":"H13+1","v":15},16,17,18,19,20,21,null,{"$f":"P13+1","v":12},13,14,15,16,17,18,null,{"$f":"X13+1","v":12},13,14,15,16,17,18,{"$f":"IF($CQ$35=3,$CO$35,\"\")","v":""},null,null,null,null,null,null,null,null,null,null,null,null,null,null,null,null,null,null,null,"Para otra fórmula  que se necesite",null,null,null,null,null,null,null,null,null,null,null,null,null,null,null,null,null,null,null,null,null,null,null,null,null,null,null,null,null,null,null,null,null,null,null,null,null,null,null,null,null,null,null,null,null,null,"  DÍA DE ANDALUCIA"]
[null,{"$f":"H14+1","v":22},23,24,25,26,27,28,null,{"$f":"P14+1","v":19},20,21,22,23,24,25,null,{"$f":"X14+1","v":19},20,21,22,23,24,25,{"$f":"IF($CQ$36=3,$CO$36,\"\")","v":""},null,null,"Valor real día 1º",null,null,null,null,null,null,null,null,null,null,null,null,null,null,null,null,null,null,null,null,null,null,null,null,null,null,null,null,null,null,"Valor real día 1º"]
[null,{"$f":"H15+1","v":29},30,31,32,33,34,35,null,{"$f":"P15+1","v":26},27,28,29,30,31,32,null,{"$f":"X15+1","v":26},27,28,29,30,31,32,null,null,null,"del año en calendario",null,null,null,null,null,null,null,null,null,null,null,null,null,null,null,null,null,null,null,null,null,null,null,null,null,null,null,null,null,null,"del año en calendario",null,null,null,null,null,null,null,null,null,null,null,null,null,null,null,null,null,null,null,null,null,null,null,null,null,null,null,null,null,null,null,null," FIESTAS NACIONALES"]
[null,{"$f":"H16+1","v":36},37,38,39,40,41,42,null,{"$f":"P16+1","v":33},34,35,36,37,38,39,null,{"$f":"X16+1","v":33},34,35,36,37,38,39,null,null,null,"Sábado",-4,null,null,null,null,null,null,null,null,null,null,null,null,null,null,null,null,null,null,null,null,null,null,null,null,null,null,null,null,null,"Sábado",-4]
[null,null,null,null,null,null,null,null,null,null,null,null,null,null,null,null,null,null,null,null,null,null,null,null,null,null,null,"Domingo",-5,null,null,null,null,null,null,null,null,null,null,null,null,null,null,null,null,null,null,null,null,null,null,null,null,null,null,null,null,null,"Domingo",-5,null,null,null,null,null,null,null,null,null,null,null,null,null,null,null,null,null,null,null,null,null,null,null,null,null,null,null,null,null,null,null,"SEMANA SANTA"]
[null,null,null,null,null,null,null,"AÑO",null,{"$f":"M6","v":2018},null,null,null,null,null,null,null,null,null,null,null,null,null,null,null,null,null,"Lunes",1,null,null,null,null,null,null,null,null,null,null,null,null,null,null,null,null,null,null,null,null,null,null,null,null,null,null,null,null,null,"Lunes",1,null,null,null,null,null,null,null,null,null,null,null,null,null,null,null,null,null,null,null,null,null,null,null,null,null,null,null,null,"Calcular días entre dos fechas:"]
[null,null,null,null,"ABRIL",null,null,null,null,null,null,null,"MAYO",null,null,null,null,null,null,null,"JUNIO",null,null,null,null,null,null,"Martes",0,null,null,null,null,null,null,null,null,null,null,null,null,null,null,null,null,null,null,null,null,null,null,null,null,null,null,null,null,null,"Martes",0]
[null,"L","M","M","J","V","S","D",null,"L","M","M","J","V","S","D",null,"L","M","M","J","V","S","D",null,null,null,"Miércoles",-1,null,null,null,null,null,null,null,null,null,null,null,null,null,null,null,null,null,null,null,null,null,null,null,null,null,null,null,null,null,"Miércoles",-1,null,null,null,null,null,null,null,null,null,null,null,null,null,null,null,null,null,null,null,null,null,null,null,null,null,null,null,null,null,"Fecha Inicial",null,null,null,"2007-01-05"]
[null,{"$f":"IF(X12>=4,T16-33,IF(X12=3,1,IF(X12=2,0,IF(X12=1,-1))))","v":-5},{"$f":"B22+1","v":-4},-3,-2,-1,0,1,{"$f":"IF($V$61=4,$U$61,\"\")","v":""},{"$f":"IF(H22>=3,D26-32,IF(H22=2,1,IF(H22=1,0)))","v":0},{"$f":"J22+1","v":1},2,3,4,5,6,{"$f":"IF($CQ$35=5,$CO$35,\"\")","v":7},{"$f":"IF(P22>=4,L26-33,IF(P22=3,1,IF(P22=2,0,IF(P22=1,-1))))","v":-3},{"$f":"R22+1","v":-2},-1,0,1,2,3,{"$f":"IF($CQ$35=6,$CO$35,\"\")","v":""},null,null,"Jueves",-2,null,null,null,null,null,null,null,null,null,null,null,null,null,null,null,null,null,null,null,null,null,null,null,null,null,null,null,null,null,"Jueves",-2]
[null,{"$f":"H22+1","v":2},3,4,5,6,7,8,{"$f":"IF($V$62=4,$U$62,\"\")","v":""},{"$f":"P22+1","v":7},8,9,10,11,12,13,{"$f":"IF($CQ$36=5,$CO$36,\"\")","v":""},{"$f":"X22+1","v":4},5,6,7,8,9,10,{"$f":"IF($CQ$36=6,$CO$36,\"\")","v":""},null,null,"Viernes",-3,null,null,null,null,null,null,null,null,null,null,null,null,null,null,null,null,null,null,null,null,null,null,null,null,null,null,null,null,null,"Viernes",-3,null,null,null,null,null,null,null,null,null,null,null,null,null,null,null,null,null,null,null,null,null,null,null,null,null,null,null,null,null,"Fecha final",null,null,null,"2007-02-17"]
[null,{"$f":"H23+1","v":9},10,11,12,13,14,15,{"$f":"IF($CQ$35=4,$CO$35,\"\")","v":""},{"$f":"P23+1","v":14},15,16,17,18,19,20,null,{"$f":"X23+1","v":11},12,13,14,15,16,17]
[null,{"$f":"H24+1","v":16},17,18,19,20,21,22,{"$f":"IF($CQ$36=4,$CO$36,\"\")","v":""},{"$f":"P24+1","v":21},22,23,24,25,26,27,null,{"$f":"X24+1","v":18},19,20,21,22,23,24,null,null,null,null,null,null,null,null,null,null,null,null,null,null,null,null,null,null,null,null,null,null,null,null,null,null,null,null,null,null,null,null,null,null,null,null,null,null,null,null,null,null,null,null,null,null,null,null,null,null,null,null,null,null,null,null,null,null,null,null,null,null,null,null,null,"Días ",null,null,{"$f":"DAYS360(CP21,CP23,TRUE)","v":42}]
[null,{"$f":"H25+1","v":23},24,25,26,27,28,29,null,{"$f":"P25+1","v":28},29,30,31,32,33,34,null,{"$f":"X25+1","v":25},26,27,28,29,30,31]
[null,{"$f":"H26+1","v":30},31,32,33,34,35,36,null,{"$f":"P26+1","v":35},36,37,38,39,40,41,null,{"$f":"X26+1","v":32},33,34,35,36,37,38]
[null,null,null,null,null,null,null,null,null,null,null,null,null,null,null,null,null,null,null,null,null,null,null,null,null,null,null,null,null,null,null,null,null,null,null,null,null,null,null,null,null,null,null,null,null,null,null,null,null,null,null,null,null,null,null,null,null,null,null,null,null,null,null,null,null,null,null,null,null,null,null,null,null,null,null,null,null,null,null,null,null,null,null,null,null,null,null,null,"Anotar aquí los días de fiesta local de su ciudad"]
[null,null,null,null,null,null,null,"AÑO",null,{"$f":"M6","v":2018}]
[null,null,null,null,"JULIO",null,null,null,null,null,null,null,"AGOSTO",null,null,null,null,null,null,null,"SEPTIEMBRE",null,null,null,null,null,null,null,null,null,null,null,null,null,null,null,null,null,null,null,null,null,null,null,null,null,null,null,null,null,null,null,null,null,null,null,null,null,null,null,null,null,null,null,null,null,null,null,null,null,null,null,null,null,null,null,null,null,null,null,null,null,null,null,null,null,null,null,null,"1er. Día Fiesta local",null,null,null,"2018-05-07"]
[null,"L","M","M","J","V","S","D",null,"L","M","M","J","V","S","D",null,"L","M","M","J","V","S","D"]
[null,{"$f":"IF(X22>=3,T26-32,IF(X22=2,1,IF(X22=1,0)))","v":-5},{"$f":"B32+1","v":-4},-3,-2,-1,0,1,{"$f":"IF($CQ$35=7,$CO$35,\"\")","v":""},{"$f":"IF(H32>=4,D36-33,IF(H32=3,1,IF(H32=2,0,IF(H32=1,-1))))","v":-1},{"$f":"J32+1","v":0},1,2,3,4,5,{"$f":"IF($CQ$35=8,$CO$35,\"\")","v":""},{"$f":"IF(P32>=4,L36-33,IF(P32=3,1,IF(P32=2,0,IF(P32=1,-1))))","v":-4},{"$f":"R32+1","v":-3},-2,-1,0,1,2,{"$f":"IF($CQ$35=9,$CO$35,\"\")","v":""},null,null,null,null,null,null,null,null,null,null,null,null,null,null,null,null,null,null,null,null,null,null,null,null,null,null,null,null,null,null,null,null,null,null,null,null,null,null,null,null,null,null,null,null,null,null,null,null,null,null,null,null,null,null,null,null,null,null,null,null,null,null,null,null,"2º Día Fiesta local",null,null,null,"2017-10-09"]
[null,{"$f":"H32+1","v":2},3,4,5,6,7,8,{"$f":"IF($CQ$36=7,$CO$36,\"\")","v":""},{"$f":"P32+1","v":6},7,8,9,10,11,12,{"$f":"IF($CQ$36=8,$CO$36,\"\")","v":""},{"$f":"X32+1","v":3},4,5,6,7,8,9,{"$f":"IF($CQ$36=9,$CO$36,\"\")","v":""},null,null,null,null,null,null,null,null,null,null,null,null,null,null,null,null,null,null,null,null,null,null,null,null,null,null,null,null,null,null,null,null,null,null,null,null,null,null,null,null,null,null,null,null,null,null,null,null,null,null,null,null,null,null,null,null,null,null,null,null,null,null,null,null,null,null,null,null,2]
[null,{"$f":"H33+1","v":9},10,11,12,13,14,15,null,{"$f":"P33+1","v":13},14,15,16,17,18,19,null,{"$f":"X33+1","v":10},11,12,13,14,15,16,null,null,null,null,null,null,null,null,null,null,null,null,null,null,null,null,null,null,null,null,null,null,null,null,null,null,null,null,null,null,null,null,null,null,null,null,null,null,null,null,null,null,null,null,null,null,null,null,null,null,null,null,null,null,null,null,null,null,null,null,null,null,null,null,null,null,null,null,"DÍA",null,"MES"]
[null,{"$f":"H34+1","v":16},17,18,19,20,21,22,null,{"$f":"P34+1","v":20},21,22,23,24,25,26,null,{"$f":"X34+1","v":17},18,19,20,21,22,23,null,null,null,null,null,null,null,null,null,null,null,null,null,null,null,null,null,null,null,null,null,null,null,null,null,null,null,null,null,null,null,null,null,null,null,null,null,null,null,null,null,null,null,null,null,null,null,null,null,null,null,null,null,null,null,null,null,null,null,null,null,null,null,null,null,null,null,null,{"$f":"DAY(CP30)","v":7},null,{"$f":"MONTH(CP30)","v":5}]
[null,{"$f":"H35+1","v":23},24,25,26,27,28,29,null,{"$f":"P35+1","v":27},28,29,30,31,32,33,null,{"$f":"X35+1","v":24},25,26,27,28,29,30,null,null,null,null,null,null,null,null,null,null,null,null,null,null,null,null,null,null,null,null,null,null,null,null,null,null,null,null,null,null,null,null,null,null,null,null,null,null,null,null,null,null,null,null,null,null,null,null,null,null,null,null,null,null,null,null,null,null,null,null,null,null,null,null,null,null,null,null,{"$f":"DAY(CP32)","v":9},null,{"$f":"MONTH(CP32)","v":10}]
[null,{"$f":"H36+1","v":30},31,32,33,34,35,36,null,{"$f":"P36+1","v":34},35,36,37,38,39,40,null,{"$f":"X36+1","v":31},32,33,34,35,36,37]
[]
[null,null,null,null,null,null,null,"AÑO",null,{"$f":"M6","v":2018}]
[null,null,null,null,"OCTUBRE",null,null,null,null,null,null,null,"NOVIEMBRE",null,null,null,null,null,null,null,"DICIEMBRE"]
[null,"L","M","M","J","V","S","D",null,"L","M","M","J","V","S","D",null,"L","M","M","J","V","S","D"]
[null,{"$f":"IF(X32>=3,T36-32,IF(X32=2,1,IF(X32=1,0)))","v":1},{"$f":"B42+1","v":2},3,4,5,6,7,{"$f":"IF($CQ$35=10,$CO$35,\"\")","v":""},{"$f":"IF(H42>=4,D46-33,IF(H42=3,1,IF(H42=2,0,IF(H42=1,-1))))","v":-2},{"$f":"J42+1","v":-1},0,1,2,3,4,{"$f":"IF($CQ$35=11,$CO$35,\"\")","v":""},{"$f":"IF(P42>=3,L46-32,IF(P42=2,1,IF(P42=1,0)))","v":-4},{"$f":"R42+1","v":-3},-2,-1,0,1,2,{"$f":"IF($CQ$35=12,$CO$35,\"\")","v":""}]
[null,{"$f":"H42+1","v":8},9,10,11,12,13,14,{"$f":"IF($CQ$36=10,$CO$36,\"\")","v":9},{"$f":"P42+1","v":5},6,7,8,9,10,11,{"$f":"IF($CQ$36=11,$CO$36,\"\")","v":""},{"$f":"X42+1","v":3},4,5,6,7,8,9,{"$f":"IF($CQ$36=12,$CO$36,\"\")","v":""}]
[null,{"$f":"H43+1","v":15},16,17,18,19,20,21,null,{"$f":"P43+1","v":12},13,14,15,16,17,18,null,{"$f":"X43+1","v":10},11,12,13,14,15,16]
[null,{"$f":"H44+1","v":22},23,24,25,26,27,28,null,{"$f":"P44+1","v":19},20,21,22,23,24,25,null,{"$f":"X44+1","v":17},18,19,20,21,22,23]
[null,{"$f":"H45+1","v":29},30,31,32,33,34,35,null,{"$f":"P45+1","v":26},27,28,29,30,31,32,null,{"$f":"X45+1","v":24},25,26,27,28,29,30]
[null,{"$f":"H46+1","v":36},37,38,39,40,41,42,null,{"$f":"P46+1","v":33},34,35,36,37,38,39,null,{"$f":"X46+1","v":31},32,33,34,35,36,37]
[]
[null,null,"Leyenda:"]
[]
[null,null,null,null," FIESTAS LOCALES",null,null,null,null,null,null,"FIESTAS NACIONALES",null,null,null,null,null,null,null,"SEMANA SANTA"]
[]
[null,null,"Calcular días entre dos fechas:",null,null,null,null,null,null,null,null,null,"Días ",null,null,{"$f":"DAYS360(I54,Q54,TRUE)","v":42},null,null,null,null,"Ju.Santo",null,"Vi.Santo"]
[null,null,null,"Fecha Inicial",null,null,null,null,"2007-01-05",null,null,null,"Fecha final",null,null,null,"2007-02-17",null,null,null,{"$f":"G61","v":"2018-03-29"},null,{"$f":"G62","v":"2018-03-30"}]
[null,null,null,null,null,null,null,null,null,null,null,null,null,null,null,null,null,null,null,null,{"$f":"LEFT(U54,2)","v":"43"},{"$f":"IF(--RIGHT(U54,2)<1,RIGHT(U54,1),RIGHT(U54,2))","v":"88"},{"$f":"LEFT(W54,2)","v":"43"}]
[null,null,null,null,null,null,null,null,null,null,null,null,null,null,"AÑO"]
[null,null,null,null,null,null,"Cálculo de la fecha de la Pascua de Resurreción",null,null,null,null,null,null,null,{"$f":"M6","v":2018}]
[null,null,null,null,null,null,{"$f":"MOD(234-11*MOD(O57,19),30)+21","v":31}]
[null,null,null,null,null,null,{"$f":"G58-IF(G58>48,1,0)","v":31}]
[null,null,null,null,null,null,{"$f":" DATE(O57,3,7)+G59-MOD(O57+INT(O57/4)+G59+1,7)","v":"2018-04-01"},null,null,"FECHA DOMINGO DE RESURRECIÓN",null,null,null,null,null,null,null,null,null,null,"DÍA","MES"]
[null,null,null,null,null,null,{"$f":"G60-3","v":"2018-03-29"},null,null,"FECHA JUEVES SANTO",null,null,null,null,null,null,"EXTRAER DÍA Y MES",null,null,null,{"$f":"DAY(G61)","v":29},{"$f":"MONTH(G61)","v":3}]
[null,null,null,null,null,null,{"$f":"G61+1","v":"2018-03-30"},null,null,"FECHA VIERNES SANTO",null,null,null,null,null,null,"EXTRAER DÍA Y MES",null,null,null,{"$f":"DAY(G62)","v":30},{"$f":"MONTH(G62)","v":3}]